Cogmind - Beta 16.1 @@@ ROGUE MODE // 2026.01.31 @ 09:07:26 Player: H3-MLN Result: Defending 0bPrime! Performance ------------- Evolutions (8) 4000 Regions Visited (24) 4800 Robots Destroyed (325) 1625 Value Destroyed (13170) 13170 Prototype IDs (173) 3460 Alien Tech Used (3) 600 Bonus (19608) 19608 TOTAL SCORE: 47263 Bonus ------- High Alert Combat Kills 1320 Follower Combat Kills 2779 Hunted by Unchained 500 Registered with UFD 300 Met Optimus in HQ 500 Met Data Miner 300 Met Zhirov 300 Met Optimus at Protoforge 1000 Executed Drillbomb Mission 10000 Win 3000 Friendly Fire -391 Cogmind --------- Core Integrity 919/1450 Matter 282/300 Energy 420/420 System Corruption 13% Temperature Cool (0) Movement Rolling (90) Ox2 Location 0bPrime Parts ------- > --- POWER (2) -------- Light Antimatter Reactor Improved Quantum Reactor > --- PROPULSION (6) --- Overtuned Huge Scrapsphere Overtuned Huge Scrapsphere Combat Linear Gravjet > --- UTILITY (10) ----- Scrap Suit Large Storage Unit Spectral Analyzer Experimental Active Sensor Suite Makeshift Propulsion Shielding Centrium Light Armor Plating Centrium Medium Armor Plating Blink Core > --- WEAPON (5) ------- Molecular Scythe Plasma Lance > --- INVENTORY (15) --- Combat Linear Gravjet Experimental Energy Well (600) Experimental Reaction Control System Subatomic Replicator Terrabomb Overtuned Railgun Peak State ------------ > --- POWER ------------ Improved Quantum Reactor Zero-point Reactor > --- PROPULSION ------- Cooled Linear Gravjet Cooled Linear Gravjet Combat Linear Gravjet Combat Linear Gravjet Combat Linear Gravjet Combat Linear Gravjet > --- UTILITY ---------- Large Storage Unit Spectral Analyzer Advanced Melee Analysis Suite Experimental Core Analyzer Nanoactuators Experimental Reaction Control System Centrium Medium Armor Plating Thermal Barrier Experimental Shield Generator Blink Core > --- WEAPON ----------- Improved Potential Cannon Vibroblade Molecular Scythe Molecular Scythe > --- INVENTORY -------- Experimental Energy Well Experimental Energy Well Experimental Core Analyzer Nanoactuators Heavy Regenerative Plating Transdimensional Reconstructor Subatomic Replicator Terrabomb Concept XC Strikerail IN-MT5's Pitchfork "Insurrection" IN-MT5's Pitchfork "Insurrection" Kinetic Spear [Rating: 221] Favorites ----------- Power Cold Fusion Reactor Engine Ion Engine Power Core Micro Fission Core Reactor Cold Fusion Reactor Propulsion Combat Linear Gravjet Treads Armored Treads Leg Arachnoskeleton Wheel Wheel Hover Unit Combat Linear Gravjet Flight Unit Improved Cesium-ion Thruster Utility Blink Core Device Blink Core Storage High-capacity Storage Unit Processor Experimental Signal Interpreter Hackware Hacking Suite Protection Powered Armor Weapon Kinetic Spear Energy Gun Gatling Laser Energy Cannon Heavy Plasma Cannon Ballistic Gun Heavy Machine Gun Ballistic Cannon Antimatter Cannon Launcher Precision Rocket Launcher Special Weapon Junk Cannon Impact Weapon Powered Hammer Slashing Weapon Molecular Scythe Piercing Weapon Kinetic Spear Special Melee Weapon Improved Datajack Build | -11 -10 -10 -10 -9 -6 -6 -6 -6 -5 -5 -5 -5 -5 -5 -5 -4 -4 -4 -4 -3 -3 -2 -2 -2 ------- Run | Yrd Mat Min Sub Scr Fac Low Low Dat Pro Fac Was Fac Upp Upp Zhi Pro Fac Arm Lab Res Tes Res Qua Frg Slots Evolved 16 | . . . . . 8 . . . . 2 . . . . . . 2 . . 2 . 2 . . Power 1 | . . . . . . . . . . . . . . . . . 1 . . . . . . . Propulsion 4 | . . . . . 2 . . . . . . . . . . . 1 . . . . 1 . . Utility 8 | . . . . . 3 . . . . 2 . . . . . . . . . 2 . 1 . . Weapon 3 | . . . . . 3 . . . . . . . . . . . . . . . . . . . Parts Attached 356 | 6 5 . 4 8 40 2 1 . 2 40 6 22 2 3 2 16 48 33 . 30 14 19 8 45 Power 36 | 1 . . 1 . 4 . . . . 1 . 1 . . 1 . 10 3 . 6 1 1 . 6 Engine 6 | 1 . . 1 . 1 . . . . . . . . . . . 3 . . . . . . . Core 10 | . . . . . 2 . . . . . . 1 . . . . 4 2 . 1 . . . . Reactor 20 | . . . . . 1 . . . . 1 . . . . 1 . 3 1 . 5 1 1 . 6 Propulsion 82 | 2 2 . 1 . 12 1 . . . 14 1 4 . . 1 5 12 13 . 1 1 4 1 7 Treads 5 | . 1 . . . 4 . . . . . . . . . . . . . . . . . . . Leg 29 | . . . . . 3 1 . . . 13 1 4 . . 1 1 . . . . 1 . 1 3 Wheel 12 | 2 1 . 1 . 5 . . . . . . . . . . . . . . . . . . 3 Hover 35 | . . . . . . . . . . . . . . . . 4 12 13 . 1 . 4 . 1 Flight 1 | . . . . . . . . . . 1 . . . . . . . . . . . . . . Utility 144 | 1 2 . . 2 13 1 . . 1 12 4 7 1 . . 8 18 10 . 19 9 8 4 24 Device 61 | . . . . 1 6 . . . 1 5 2 2 . . . 3 9 2 . 7 5 4 1 13 Storage 16 | 1 1 . . 1 1 . . . . . . 1 . . . 1 3 2 . 1 1 2 1 . Processor 16 | . . . . . 1 . . . . . . . 1 . . . 2 2 . 3 2 . . 5 Hackware 21 | . 1 . . . 1 . . . . 3 . 2 . . . 1 4 3 . 3 . 1 2 . Protection 30 | . . . . . 4 1 . . . 4 2 2 . . . 3 . 1 . 5 1 1 . 6 Artifact . | . . . . . . . . . . . . . . . . . . . . . . . . . Weapon 94 | 2 1 . 2 6 11 . 1 . 1 13 1 10 1 3 . 3 8 7 . 4 3 6 3 8 Energy Gun 15 | 1 . . 1 2 1 . . . . 1 1 1 . . . 2 . 2 . . . 1 1 1 Energy Cannon 10 | . . . 1 . 2 . . . . 1 . . . . . . 2 . . 1 3 . . . Ballistic Gun 23 | 1 1 . . 1 3 . . . . 8 . 2 . 1 . 1 2 1 . . . . . 2 Ballistic Cannon 12 | . . . . . 3 . 1 . 1 1 . 2 . . . . . 1 . . . 2 . 1 Launcher 6 | . . . . . . . . . . 1 . 2 . . . . 1 . . 1 . 1 . . Special Weapon 12 | . . . . 2 . . . . . 1 . 1 . 2 . . 2 1 . . . . 1 2 Impact Weapon 1 | . . . . . . . . . . . . 1 . . . . . . . . . . . . Slashing Weapon 4 | . . . . . . . . . . . . . . . . . . 1 . . . 2 1 . Piercing Weapon 7 | . . . . . 1 . . . . . . 1 1 . . . . 1 . 1 . . . 2 Special Melee Weapon 4 | . . . . 1 1 . . . . . . . . . . . 1 . . 1 . . . . Unidentified Prototypes 65 | . . . . 1 3 . . . . 3 . 7 . . 2 . 4 7 . 4 8 6 3 17 Corrupted Parts 1 | . . . . . . . . . . . . . . . . . . . . . . . . 1 System Corruption 5 | . . . . . . . . . . . . . . . . . . . . . . . . 5 Parts Lost 78 | . 1 . . . 6 1 . . 1 12 2 5 . . . 7 16 3 . 5 2 . 3 14 Power 5 | . . . . . . . . . . . . . . . . . 3 . . 2 . . . . Propulsion 26 | . 1 . . . 3 1 . . . 3 . 2 . . . 2 8 1 . . . . . 5 Utility 23 | . . . . . 1 . . . . 3 1 . . . . 2 5 . . 1 2 . 2 6 Weapon 24 | . . . . . 2 . . . 1 6 1 3 . . . 3 . 2 . 2 . . 1 3 Highest Loss Streak 5 | . 1 . . . 4 1 . . 1 5 1 4 . . . 3 4 2 . 2 1 . 2 5 To Critical Strikes . | . . . . . . . . . . . . . . . . . . . . . . . . . Average Backups 8 | 3 7 11 11 2 15 17 19 20 19 19 18 19 20 19 19 19 14 14 15 14 13 12 12 7 Power . | . 1 2 1 . . . 1 1 1 1 . . . . . . . . . . . 1 1 . Propulsion . | 1 2 4 3 . 2 1 1 1 1 1 1 1 1 1 2 3 . . 1 1 1 1 . . Utility 3 | 1 2 3 3 . 5 8 9 9 8 9 9 9 11 11 10 9 5 2 3 3 5 4 5 2 Weapon 3 | . 1 2 2 1 4 5 6 7 6 5 5 6 6 6 6 3 6 7 8 7 5 4 3 1 Tool/Special . | . . . . . . . . . . . . . . . . . . . . . . . . . Unused Backups 43 | . . . 5 6 6 1 . . 2 2 1 3 . . 1 . 2 1 . 2 2 1 . 8 Power 4 | . . . 1 . . 1 . . . . 1 . . . 1 . . . . . . . . . Propulsion 7 | . . . 2 1 2 . . . 1 1 . . . . . . . . . . . . . . Utility 15 | . . . 1 . 2 . . . . 1 . 2 . . . . 2 1 . 2 1 . . 3 Weapon 14 | . . . 1 5 1 . . . 1 . . 1 . . . . . . . . 1 1 . 3 Tool/Special 3 | . . . . . 1 . . . . . . . . . . . . . . . . . . 2 Average Slot Usage (%) 56 | . 93 100 100 28 78 82 83 83 82 91 92 97 100 100 94 94 78 92 89 91 84 93 99 79 Reactor 1 | . . . . . . 5 5 5 5 5 5 2 . . 3 4 2 . . 5 9 8 8 7 Treads 2 | . 13 14 14 . 2 17 16 16 16 2 . . . . . . . . . . . . . . Leg 4 | . . . . . 6 9 11 11 11 21 22 22 23 23 23 19 . . . . . . . . Wheel 1 | . 11 14 14 1 14 . . . . . . . . . . . . . . . . . . 1 Hover 3 | . . . . . . . . . . . . . . . . . 23 26 26 22 18 22 26 21 Device 13 | . . . . 13 10 10 11 11 11 12 19 19 17 16 16 17 11 12 15 17 19 24 20 18 Storage 7 | . 14 14 14 9 5 5 5 5 5 5 5 5 5 5 5 5 5 5 5 4 4 4 4 4 Processor 2 | . . . . . . 5 5 5 5 5 5 5 5 5 5 5 6 13 10 15 13 8 8 6 Hackware 1 | . 10 14 14 . . . . . . 7 2 5 11 11 11 7 10 1 . 1 . . 3 . Protection 1 | . . . . . 5 5 5 5 5 5 3 2 . . . 2 . 2 5 2 2 4 4 6 Ballistic Gun 3 | . 26 28 20 . 4 11 11 11 6 15 9 8 5 6 . 4 . 4 . . . . . . Ballistic Cannon 1 | . . . . . 6 . . . 9 3 . 2 11 11 . 2 . . . . . . . . Piercing Weapon 1 | . . . . . . . . . . . . . 6 8 11 11 8 12 10 8 9 7 6 1 Peak Build Rating 221 | 7 11 11 23 42 106 109 106 105 106 128 114 114 115 114 115 118 118 146 130 163 176 199 197 221 Average Rating 64 | 5 9 11 14 16 75 104 105 105 103 112 101 105 113 113 103 108 97 120 130 148 152 184 189 182 On Entrance 96 | 1 7 11 11 23 39 106 105 105 105 104 103 104 114 114 102 114 94 117 130 130 145 148 190 192 Avg Prop Armor Cover (%) 10 | . 11 11 11 9 8 10 13 13 12 7 . . . . . . 7 . . . . . . 4 Naked Turns . | . . . . . . . . . . . . . . . . . . . . . . . . . Heaviest Build 140 | 14 29 29 37 67 111 105 105 105 109 115 140 106 96 105 87 99 54 79 68 82 71 84 87 95 Greatest Support 180 | 20 20 10 20 30 80 80 70 70 70 128 110 104 96 96 96 93 60 82 82 87 71 88 88 180 Greatest Overweight (x) 15 | . 2 2 3 15 4 1 1 1 1 1 1 1 . 1 . 1 1 . . 1 1 1 1 4 Average Overweight (x) 1 | . 1 2 2 5 1 1 1 1 1 . . . . . . . . . . . . . . . Largest Inventory Capacity 20 | 8 15 15 15 20 20 20 20 20 20 20 20 20 20 20 20 20 15 15 15 15 15 15 15 15 Average Capacity 16 | 6 14 15 15 15 20 20 20 20 20 20 20 20 20 20 20 19 15 15 15 15 15 15 15 15 Most Carried 20 | 5 11 12 15 20 20 20 20 20 20 20 20 20 20 20 20 20 15 15 15 15 15 15 15 15 Average Carried 10 | 3 7 11 13 4 18 19 19 20 19 19 18 19 19 19 19 19 14 14 15 14 14 14 14 13 Final Capacity 20 | 8 15 15 15 20 20 20 20 20 20 20 20 20 20 20 20 15 15 15 15 15 15 15 15 15 Final Carried 20 | 5 11 12 15 20 20 20 20 20 20 20 18 20 20 20 20 15 15 15 15 15 15 14 15 6 Scrap Suit Usage (%) 1 | . . . . . . . . . . . . . . . . . . . . . . . . 1 Class Distribution -------------------- 55% | Mutant 11% | Skirmisher 5% | Hacker-Skirmisher 4% | Scavenger-Gladiator 3% | Scavenger-Tank Dominant Class ---------------- Mutant | -10/Materials Mutant | -10/Mines Mutant | -10/Subcaves Mutant | -9/Scraptown Scavenger-Tank | -6/Factory Skirmisher | -6/Lower Caves Skirmisher | -6/Lower Caves Skirmisher | -6/Data Miner Skirmisher | -5/Proximity Caves Scavenger-Tank | -5/Factory Scavenger-Tank | -5/Waste Assassin | -5/Factory Hacker-Skirmisher | -5/Upper Caves Hacker-Skirmisher | -5/Upper Caves Hacker-Mutant | -5/Zhirov Scavenger-Skirmisher | -4/Proximity Caves Hacker-Mutant | -4/Factory Scavenger-Gladiator | -4/Armory Scavenger-Gladiator | -4/Lab Gladiator | -3/Research Scout | -3/Testing Ninja | -2/Research Scout | -2/Quarantine Scavenger-Scout | -2/Protoforge Resources | -11 -10 -10 -10 -9 -6 -6 -6 -6 -5 -5 -5 -5 -5 -5 -5 -4 -4 -4 -4 -3 -3 -2 -2 -2 ----------- Run | Yrd Mat Min Sub Scr Fac Low Low Dat Pro Fac Was Fac Upp Upp Zhi Pro Fac Arm Lab Res Tes Res Qua Frg Matter Collected 11925 | 225 184 22 166 103 2103 237 35 . 233 2296 274 1317 96 238 94 618 1019 451 . 698 265 290 150 811 Remotely 20 | . . . . . . . . . . . . . . . . . 20 . . . . . . . Salvage Created 16937 | . 255 22 68 . 1956 277 145 . 298 3252 509 1730 . 128 252 264 1709 811 . 2179 639 1364 365 714 Parts 734 | . 29 . 3 . 62 7 8 . 15 157 2 58 . 7 3 10 88 53 . 117 27 35 18 35 Haulers Intercepted 10 | . 1 . . . 1 . . . . . . 3 . . . . 1 . . 2 . 2 . . Recyclers Shooed 19 | . 2 . . . 7 . . . . 4 . 3 . . . . 2 . . . . 1 . . Parts Field Recycled . | . . . . . . . . . . . . . . . . . . . . . . . . . Retrieved Matter . | . . . . . . . . . . . . . . . . . . . . . . . . . Parts Self-Destructed 108 | . . . 16 . . 2 16 . 13 . . . 29 15 2 15 . . . . . . . . Prevented 13 | . . . . . . 2 7 . 2 . . . . . . 2 . . . . . . . . Parts Restored . | . . . . . . . . . . . . . . . . . . . . . . . . . Kills | -11 -10 -10 -10 -9 -6 -6 -6 -6 -5 -5 -5 -5 -5 -5 -5 -4 -4 -4 -4 -3 -3 -2 -2 -2 ------- Run | Yrd Mat Min Sub Scr Fac Low Low Dat Pro Fac Was Fac Upp Upp Zhi Pro Fac Arm Lab Res Tes Res Qua Frg Combat Hostiles Destroyed 220 | . 3 . 1 . 28 1 2 . 11 46 2 25 . 6 . 6 14 16 . 28 3 6 5 17 Melee 69 | . . . . . . . . . . 2 . 2 . . . 2 13 9 . 13 2 5 4 17 Guns 58 | . 3 . . . 10 . . . 3 32 2 5 . 1 . . . 2 . . . . . . Cannons 30 | . . . 1 . 12 . 1 . 6 4 . 4 . 1 . 1 . . . . . . . . AOE 44 | . . . . . 2 . . . 1 4 . 14 . 4 . 3 . 5 . 11 . . . . Classes Destroyed 25 | . 7 1 2 . 5 2 . . 2 2 1 . . . . . . . . . 1 . 1 1 Worker 11 | . . . . . 3 . . . . 4 . 1 . . . 1 1 . . . . 1 . . Builder 20 | . 1 . . . 1 . . . . 8 . 3 . . . . 4 . . 2 . 1 . . Tunneler 4 | . . 1 . . . . . . . . . . . . . . 1 . . 2 . . . . Hauler 10 | . 1 . . . 1 . . . . . . 3 . . . . 1 . . 2 . 2 . . Recycler 26 | . 1 . . . 6 . . . . 3 . 5 . . . . 4 . . 2 1 4 . . Mechanic 2 | . 1 . . . . . . . . . . . . . . . . . . . . . . 1 Operator 13 | . 1 . . . 1 . . . . 3 . 1 . . . . 1 . . 2 1 . 2 1 Drone 14 | . . . . . . . . . 2 . . . . . . 1 . . . . . . . 11 Watcher 17 | . 2 . . . . . . . . 2 . . . . . . 2 2 . 2 1 2 1 3 Swarmer 59 | . 3 . . . 10 . . . 5 9 . 9 . 4 . 1 . 5 . 8 . . 3 2 Grunt 69 | . . . . . 12 . 1 . 3 22 . 13 . 2 . 2 1 . . 8 1 3 1 . Brawler 3 | . . . . . . . . . 1 2 . . . . . . . . . . . . . . Duelist 2 | . . . . . . . . . . 1 . . . . . 1 . . . . . . . . Protector 1 | . . . . . . . . . . 1 . . . . . . . . . . . . . . Researcher 2 | . . . . . . . . . . . . . . . . . . . . . 2 . . . Sentry 13 | . . . . . 3 . . . . 2 . 1 . . . . 1 2 . 3 . . . 1 Hunter 16 | . . . . . . 1 . . . 3 . 1 . . . . 4 2 . 1 2 . . 2 Programmer 35 | . . . . . 2 . . . . 6 . 1 . . . . 8 7 . 8 . 3 . . Behemoth 3 | . . . . . 1 . 1 . . . . . . . . 1 . . . . . . . . Compactor 2 | . . . . . . . . . . . 2 . . . . . . . . . . . . . Alpha 7 1 | . . . . . . . . . . . . . . . . . . . . . . . 1 . Artisan 1 | . . . 1 . . . . . . . . . . . . . . . . . . . . . Subdweller 1 | . . . 1 . . . . . . . . . . . . . . . . . . . . . Scrapoid 1 | . . . . . . . . . . . . . . . . . . . . . . . . 1 Tinkerer 1 | . . . . . . 1 . . . . . . . . . . . . . . . . . . Best Kill Streak 13 | . 5 1 1 . 5 1 1 . 4 7 2 13 . 4 . 1 4 6 . 7 2 3 2 3 Combat Bots Only 10 | . 3 . 1 . 4 1 1 . 4 6 2 10 . 4 . 1 4 6 . 7 1 2 2 3 Max Kills in Single Turn 4 | . 1 1 1 . 2 1 1 . 1 2 1 3 . 3 . 1 1 3 . 4 1 1 1 1 Gunslinging . | . . . . . . . . . . . . . . . . . . . . . . . . . Exploded 4 | . . . . . 2 . . . 1 2 . 3 . 3 . 1 . 3 . 4 . . . . Melee 1 | . . . . . . . . . . 1 . 1 . . . 1 1 1 . 1 1 1 1 1 Uniques/NPCs Destroyed . | . . . . . . . . . . . . . . . . . . . . . . . . . Combat | -11 -10 -10 -10 -9 -6 -6 -6 -6 -5 -5 -5 -5 -5 -5 -5 -4 -4 -4 -4 -3 -3 -2 -2 -2 -------- Run | Yrd Mat Min Sub Scr Fac Low Low Dat Pro Fac Was Fac Upp Upp Zhi Pro Fac Arm Lab Res Tes Res Qua Frg Hostile Shots Fired 1601 | . 73 . 3 . 249 9 1 . 41 271 2 105 1 8 . 112 95 109 . 146 30 3 92 251 Missed 571 | . 18 . 2 . 76 2 1 . 9 71 . 28 1 3 . 25 42 37 . 58 10 2 51 135 Hits 1030 | . 55 . 1 . 173 7 . . 32 200 2 77 . 5 . 87 53 72 . 88 20 1 41 116 Melee 19 | . . . . . . . . . 1 . 2 . . . . . . . . . . . . 16 Projectile 1011 | . 55 . 1 . 173 7 . . 31 200 . 77 . 5 . 87 53 72 . 88 20 1 41 100 AOE 3 | . . . . . . . . . . . . . . . . . 3 . . . . . . . Critical Strikes 49 | . . . . . 8 . . . . 11 1 3 . . . 4 5 4 . 3 2 . 2 6 Actively Blocked 6 | . . . . . . . . . . . . . . . . 3 2 . . . . . . 1 Part Disruptions 2 | . . . . . . . . . . . . . 1 . . . 1 . . . . . . . Damage Taken 21609 | . 427 . 20 . 2783 87 31 . 494 3793 125 1660 38 97 . 2112 1645 1376 . 2064 338 18 809 3692 Core 2323 | . 82 . 20 . 187 . . . 38 147 39 156 . . . 110 327 188 . 466 102 . 37 424 Absorbed by Shields 450 | . . . . . . . . . 45 40 . . . . . . . . . . 52 7 69 237 Redirected to Shielding 264 | . . . . . 32 . . . . . . 27 . . . 34 . . . . . . . 171 Ignored by Resistances 130 | . . . . . . . . . . . . . . . . . . . . . . . . 130 Regen/Repaired (Parts) 1173 | . . . . . 255 . . . . 18 . 131 . . . . 175 . . 208 . 167 . 219 Core Remaining (%) 65 | 100 . . . 59 . . . . 73 . . . . . . 54 . . 55 . 56 . . 63 Volleys Fired 532 | . 40 2 7 . 104 18 68 . 19 126 23 50 . 8 . 27 5 9 . 4 8 1 . 13 Largest 5 | . 2 2 2 . 5 1 4 . 3 5 3 4 . 3 . 2 1 1 . 1 1 1 . 2 Hottest 340 | . 40 40 100 . 246 90 107 . 114 274 340 260 . 99 . 260 113 113 . 113 200 200 . 200 Shots Fired 1063 | . 80 4 8 . 234 18 73 . 41 330 54 109 3 19 . 45 5 11 . 4 8 1 . 16 Gun 628 | . 80 4 1 . 108 . 2 . 18 254 49 66 1 6 . 20 . 6 . . . . . 13 Cannon 342 | . . . 7 . 99 16 68 . 17 60 . 26 2 11 . 20 4 2 . 1 7 1 . 1 Launcher 38 | . . . . . . . . . . 6 5 14 . 2 . 5 . 3 . 3 . . . . Special 55 | . . . . . 27 2 3 . 6 10 . 3 . . . . 1 . . . 1 . . 2 Kinetic 715 | . 80 4 1 . 133 . 3 . 35 283 30 76 3 17 . 38 . 7 . . . . . 5 Thermal 235 | . . . 7 . 43 16 67 . . 37 24 18 . . . 3 1 1 . 1 7 1 . 9 Explosive 24 | . . . . . . . . . . . . 12 . 2 . 4 . 3 . 3 . . . . Electromagnetic 34 | . . . . . 31 . . . . . . . . . . . 3 . . . . . . . Impact 47 | . . . . . 27 2 3 . 6 9 . . . . . . . . . . . . . . Robot Hit Streak 25 | . 5 5 9 . 25 5 2 . 6 12 9 6 2 3 . 4 6 11 . . 1 . . 4 Robot Miss Streak 15 | . 5 . . . 15 1 2 . 12 7 3 6 1 2 . 3 . 1 . . . . . . Penetration Max 2 | . . . . . . . . . . 2 . 1 . . . . . . . . . . . . Secondary Targets 6 | . . . . . . . . . . 5 . 1 . . . . . . . . . . . . Max Gunslinging Chain 1 | . . . . . . . . . . 1 . 1 . . . . . . . . . . . . Shots Hit Robots 849 | . 34 4 4 1 148 10 4 . 24 208 43 72 2 8 5 32 51 38 . 53 22 29 16 41 Core Hits 512 | . 13 1 3 . 103 3 3 . 20 132 8 62 . 7 4 15 24 23 . 44 10 10 6 21 Critical Kills 32 | . 1 . . . . . . . . 23 . 1 . . . . . 2 . 2 1 1 1 . Critical Parts Destroyed 39 | . . . . . 2 1 1 . 1 33 . . . . . . . 1 . . . . . . Critical Strikes 101 | . 1 . . . 2 1 1 . 2 58 2 4 . 1 1 1 2 8 . 4 3 2 3 5 Burn 1 | . . . . . . . . . . . . 1 . . . . . . . . . . . . Meltdown 8 | . . . . . . . . . . 3 . . . . . . . . . 2 1 1 1 . Destroy 59 | . 1 . . . . . . . . 53 2 . . . . . . 3 . . . . . . Blast 6 | . . . . . . . . . 1 2 . 2 . 1 . . . . . . . . . . Smash 6 | . . . . . 2 1 1 . 1 . . 1 . . . . . . . . . . . . Sever 10 | . . . . . . . . . . . . . . . . . . 2 . 1 . . 2 5 Impale 11 | . . . . . . . . . . . . . . . 1 1 2 3 . 1 2 1 . . Melee Attacks 546 | . . . . 1 10 2 . . . 25 . 25 . . 5 16 94 57 . 95 41 47 37 91 Thermal 122 | . . . . . 7 2 . . . 25 . . . . . 9 . 13 . 29 10 21 6 . Impact 21 | . . . . . . . . . . . . 21 . . . . . . . . . . . . Slashing 173 | . . . . . . . . . . . . . . . . . . 10 . 34 14 17 21 77 Piercing 224 | . . . . . . . . . . . . 4 . . 5 7 93 34 . 31 17 9 10 14 Sneak Attacks 83 | . . . . 1 4 2 . . . 2 . 10 . . . 1 16 . . 11 2 15 1 18 Combat Hostiles 7 | . . . . . . . . . . . . . . . . 1 1 . . . . 3 . 2 Follow-up Attacks 53 | . . . . . . . . . . . . . . . 1 5 3 7 . 9 1 9 7 11 Damage Inflicted 40567 | . 502 50 97 . 4652 513 261 . 721 6297 1373 4510 53 546 470 1813 2874 2335 . 4986 1699 2746 871 3198 Guns 7560 | . 502 50 13 . 1380 . 25 . 167 3191 982 916 21 69 . 178 . 37 . . . . . 29 Cannons 4150 | . . . 84 . 1534 219 72 . 306 841 . 452 32 184 . 264 147 . . . 15 . . . Explosions 6221 | . . . . . 252 . . . . 664 391 2094 . 293 . 689 . 557 . 1281 . . . . Melee 20266 | . . . . . 204 212 . . . 1007 . 1048 . . 470 682 2727 1741 . 3705 1684 2746 871 3169 Ramming 30 | . . . . . 3 . . . . 27 . . . . . . . . . . . . . . Kinetic 9115 | . 502 50 13 . 1774 . 63 . 473 3751 553 1122 53 253 . 442 . 37 . . . . . 29 Thermal 10559 | . . . 84 . 1056 431 34 . . 1952 820 539 . . . 485 39 687 . 1731 574 1889 238 . Explosive 4542 | . . . . . . . . . . . . 1801 . 293 . 610 . 557 . 1281 . . . . Electromagnetic 648 | . . . . . 540 . . . . . . . . . . . 108 . . . . . . . Impact 3085 | . . . . . 1279 82 164 . 248 567 . 745 . . . . . . . . . . . . Slashing 5546 | . . . . . . . . . . . . . . . . . . 285 . 849 249 554 440 3169 Piercing 7042 | . . . . . . . . . . . . 303 . . 470 276 2727 769 . 1125 876 303 193 . Highest Corruption 28 | . . . . . . . . . . 7 28 28 24 24 24 24 8 19 19 . . . 2 13 Average Corruption 12 | . . . . . . . . . . 5 19 24 24 24 24 24 4 9 19 . . . 1 2 Corruption Purged 8 | . . . . . . . . . . 3 . 5 . . . . . . . . . . . . Corruption Blocked 9 | . . . . . . . . . . . . . . . . . . . . 9 . . . . Effects 395 | . . . . . . . . . . 55 16 75 36 27 16 67 23 33 . . . . 1 46 Message Errors 96 | . . . . . . . . . . 13 2 18 9 8 6 16 2 10 . . . . . 12 Matter Fused 101 | . . . . . . . . . . 13 2 13 9 5 3 22 7 9 . . . . 1 17 Heat Flow Errors 33 | . . . . . . . . . . 4 1 6 5 2 3 3 4 3 . . . . . 2 Energy Discharges 36 | . . . . . . . . . . 4 2 9 2 3 1 3 2 5 . . . . . 5 Parts Rejected 5 | . . . . . . . . . . . . 1 . 1 . 2 1 . . . . . . . Parts Fused 6 | . . . . . . . . . . 2 1 . 1 1 . 1 . . . . . . . . Data Loss (minor) 45 | . . . . . . . . . . 4 2 8 5 3 3 8 4 3 . . . . . 5 Data Loss (major) 21 | . . . . . . . . . . 3 2 6 . 1 . 2 3 . . . . . . 4 Misfires 17 | . . . . . . . . . . 5 . 2 3 2 . 3 . 2 . . . . . . Alerts 11 | . . . . . . . . . . 2 1 2 1 . . 4 . . . . . . . 1 Misdirections 9 | . . . . . . . . . . . 3 4 1 . . . . 1 . . . . . . Weapon Failures 15 | . . . . . . . . . . 5 . 6 . 1 . 3 . . . . . . . . Overload Shots . | . . . . . . . . . . . . . . . . . . . . . . . . . Overflow Damage 4376 | . . . . . 456 270 137 . 84 247 . 241 . 37 13 56 487 228 . 630 254 719 58 459 Projectiles 817 | . . . . . 326 111 137 . 84 159 . . . . . . . . . . . . . . Explosions 277 | . . . . . 24 . . . . . . 36 . 37 . . . 62 . 118 . . . . Melee 3282 | . . . . . 106 159 . . . 88 . 205 . . 13 56 487 166 . 512 254 719 58 459 Knockbacks 51 | . . . . . 18 1 . . 8 15 . 7 . . . 2 . . . . . . . . Impact 10 | . . . . . 3 1 . . 2 1 . 3 . . . . . . . . . . . . Kinetic 39 | . . . . . 13 . . . 6 14 . 4 . . . 2 . . . . . . . . Secondary 2 | . . . . . 2 . . . . . . . . . . . . . . . . . . . Self-Inflicted Damage 196 | . . . . . 44 . . . . . . 60 . . . 24 . 68 . . . . . . Shots 5 | . . . . . 1 . . . . . . 2 . . . 1 . 1 . . . . . . Rammed . | . . . . . . . . . . . . . . . . . . . . . . . . . Targets Rammed 3 | . . . . . 1 . . . . 2 . . . . . . . . . . . . . . Kicked 2 | . . . . . . . . . . 2 . . . . . . . . . . . . . . Crushed 1 | . . . . . 1 . . . . . . . . . . . . . . . . . . . Highest Temperature 438 | . . . . . 438 156 228 . 81 433 317 333 251 217 176 208 180 231 . 268 265 256 63 104 Average Temperature 85 | . . . . . 95 59 56 . 32 101 136 107 97 106 79 39 56 67 . 64 67 73 54 42 Received Heat Transfer 3117 | . . . 6 . 690 . 12 . 81 948 9 486 . 36 . 228 18 36 . 183 . . 18 366 Effects 5 | . . . . . 2 . . . . 1 1 . . . . . . . . 1 . . . . Energy Bleed 3 | . . . . . 1 . . . . . 1 . . . . . . . . 1 . . . . Matter Decay 1 | . . . . . 1 . . . . . . . . . . . . . . . . . . . Short Circuit 1 | . . . . . . . . . . 1 . . . . . . . . . . . . . . Siege Activations . | . . . . . . . . . . . . . . . . . . . . . . . . . Martial Activations . | . . . . . . . . . . . . . . . . . . . . . . . . . Shielding Activations . | . . . . . . . . . . . . . . . . . . . . . . . . . Robots Disrupted . | . . . . . . . . . . . . . . . . . . . . . . . . . Combat Hostiles . | . . . . . . . . . . . . . . . . . . . . . . . . . Robots Corrupted 11 | . . . . . 5 1 1 . 1 1 . 1 . . . . 1 . . . . . . . Combat Hostiles 9 | . . . . . 4 1 1 . 1 1 . . . . . . 1 . . . . . . . Parts Fried 14 | . . . . . 6 2 1 . . . . 4 . . . . 1 . . . . . . . Impact Corruptions 21 | . . . . . 9 1 2 . 2 3 . 4 . . . . . . . . . . . . Robots Melted 11 | . . . . . . . . . . 3 . . . . . . . . . 4 2 1 1 . Combat Hostiles 10 | . . . . . . . . . . 3 . . . . . . . . . 4 1 1 1 . Parts Melted 51 | . . . . . 3 . . . . 9 . 5 . . . 1 . 3 . 10 9 6 5 . Heat Transferred 15398 | . . . 111 . 1265 590 50 . . 2815 1615 1075 . . . 880 37 1080 . 2640 840 2040 360 . Parts Sabotaged . | . . . . . . . . . . . . . . . . . . . . . . . . . Parts Stolen . | . . . . . . . . . . . . . . . . . . . . . . . . . Parts Stripped . | . . . . . . . . . . . . . . . . . . . . . . . . . Power Chain Reactions 3 | . . . . . 3 . . . . . . . . . . . . . . . . . . . Alert | -11 -10 -10 -10 -9 -6 -6 -6 -6 -5 -5 -5 -5 -5 -5 -5 -4 -4 -4 -4 -3 -3 -2 -2 -2 ------- Run | Yrd Mat Min Sub Scr Fac Low Low Dat Pro Fac Was Fac Upp Upp Zhi Pro Fac Arm Lab Res Tes Res Qua Frg Maximum Alert Level 4 | . . . . . 2 . . . . 4 1 3 . . . . . 1 . 3 2 1 1 1 Low Security (%) 48 | 100 100 100 . . 66 . . . . 1 1 42 . . . . 100 92 . 72 . 76 25 35 Level 1 26 | . . . . . 11 . . . . 12 98 30 . . . . . 7 . 1 59 23 74 64 Level 2 11 | . . . . . 22 . . . . 32 . 10 . . . . . . . 6 40 . . . Level 3 12 | . . . . . . . . . . 48 . 16 . . . . . . . 19 . . . . Level 4 1 | . . . . . . . . . . 5 . . . . . . . . . . . . . . Level 5 . | . . . . . . . . . . . . . . . . . . . . . . . . . High Security . | . . . . . . . . . . . . . . . . . . . . . . . . . Max Security . | . . . . . . . . . . . . . . . . . . . . . . . . . Peak Influence 1185 | . 65 13 . . 473 . . . . 1185 376 1042 . . . . 147 234 . 1050 525 327 385 358 Initial 493 | . . 13 . . . . . . . 300 376 138 . . . . . 70 . . 493 196 126 216 Average 296 | . 14 4 . . 167 . . . . 713 284 363 . . . . 44 74 . 236 422 172 244 228 Influence Increases 12471 | . 115 5 99 . 984 40 50 . 255 2631 12 1720 357 271 12 324 812 620 . 1757 313 628 489 977 Destroy 0b10 Robot/C 5680 | . 60 . 80 . 560 20 40 . 180 1140 . 880 260 180 . 220 380 320 . 800 100 220 120 120 Destroy 0b10 Robot/NC 670 | . 35 5 . . 60 10 . . 10 135 . 85 . . 10 10 70 10 . 60 20 55 15 80 Destroy Leader 1124 | . 16 . 10 . 122 10 10 . 20 262 . 148 10 20 . 40 96 84 . 158 12 58 12 36 Allied During Kill 591 | . . . 9 . . . . . . 68 . 108 72 71 2 54 13 6 . 128 . 57 3 . Successful Hack 430 | . 4 . . . 28 . . . . 91 . 109 . . . . 61 30 . 29 38 5 23 12 Disable Machine 540 | . . . . . 30 . . . . 105 . 60 . . . . 15 75 . 15 105 . 60 75 Anti-Garrison Action 350 | . . . . . . . . . . 150 . . . . . . . . . 200 . . . . Destroy Structure 871 | . . . . . 34 . . . . 170 12 270 . . . . 42 50 . 112 8 68 6 99 Advance Influence 300 | . . . . . . . . . . 300 . . . . . . . . . . . . . . Partial Spotted 270 | . . . . . . . . . . . . . . . . . 30 45 . 75 . . 15 105 Lose Combat Pursuer 1545 | . . . . . 150 . . . 45 210 . 60 15 . . . 105 . . 180 30 165 135 450 Miscellaneous 100 | . . . . . . . . . . . . . . . . . . . . . . . 100 . Influence Decreases 12142 | . 80 35 104 . 520 504 50 . 255 1556 889 888 716 431 523 324 669 533 230 879 841 754 328 1033 Entered New Map 3088 | . . 22 3 . . 173 . . . . 699 60 382 129 511 . . 73 230 . 385 154 98 169 Time Decay 6108 | . 80 13 81 . 460 321 50 . 255 686 140 450 294 302 12 264 371 390 . 409 286 380 180 684 Search Patrol Dispatched 100 | . . . . . . . . . . 100 . . . . . . . . . . . . . . Lost Part 672 | . . . . . 60 10 . . . 120 20 50 . . . 20 122 30 . 50 20 . 30 140 Lost Ally 1392 | . . . 20 . . . . . . 200 30 180 40 . . 40 142 40 . 420 . 220 20 40 Purge Threat 782 | . . . . . . . . . . 450 . 148 . . . . 34 . . . 150 . . . Squads Dispatched 103 | . . . . . 14 . . . . 23 . 14 . . . . 13 8 . 12 4 6 3 6 Investigation 41 | . . . . . 7 . . . . 9 . 3 . . . . 6 3 . 6 1 3 . 3 Extermination 24 | . . . . . 3 . . . . 3 . 2 . . . . 3 2 . 4 2 2 2 1 Reinforcement 21 | . . . . . 1 . . . . 5 . 4 . . . . 4 1 . 2 . 1 1 2 Assault 11 | . . . . . . . . . . 6 . 2 . . . . . 2 . . 1 . . . Garrison 6 | . . . . . 3 . . . . . . 3 . . . . . . . . . . . . Intercept . | . . . . . . . . . . . . . . . . . . . . . . . . . Searches Triggered 1 | . . . . . . . . . . 1 . . . . . . . . . . . . . . Data Miner Redirects 5 | . . . . . . . . . . 4 . 1 . . . . . . . . . . . . Construction Impeded 4 | . . . . . . . . . . 3 . . . . . . 1 . . . . . . . Haulers Reinforced 2 | . . . . . . . . . . . . 1 . . . . 1 . . . . . . . Active Scanning Responses . | . . . . . . . . . . . . . . . . . . . . . . . . . Cargo Convoy Interrupts 2 | . . . . . . . . . . . . . . . . . . . . 1 . 1 . . Stealth | -11 -10 -10 -10 -9 -6 -6 -6 -6 -5 -5 -5 -5 -5 -5 -5 -4 -4 -4 -4 -3 -3 -2 -2 -2 --------- Run | Yrd Mat Min Sub Scr Fac Low Low Dat Pro Fac Was Fac Upp Upp Zhi Pro Fac Arm Lab Res Tes Res Qua Frg Distress Signals 21 | . . . . . 3 . . . . 9 . 2 . . . . . 1 . . . 1 . 5 Communications Jammed 3 | . . . . . . . . . . . . . . . . . . . . 2 1 . . . Distress Signals 1 | . . . . . . . . . . . . . . . . . . . . . 1 . . . Times Spotted 546 | . 10 . 2 . 44 1 2 . 13 82 6 51 10 6 . 13 44 23 . 63 9 17 24 126 Peak Tracking Total 23 | . 3 . 1 . 11 1 1 . 7 9 4 8 8 4 . 3 13 11 . 12 3 13 11 23 Tactical Retreats 62 | . . . . . 5 . . . 2 10 1 4 1 . . . 5 . . 5 2 4 6 17 Traps | -11 -10 -10 -10 -9 -6 -6 -6 -6 -5 -5 -5 -5 -5 -5 -5 -4 -4 -4 -4 -3 -3 -2 -2 -2 ------- Run | Yrd Mat Min Sub Scr Fac Low Low Dat Pro Fac Was Fac Upp Upp Zhi Pro Fac Arm Lab Res Tes Res Qua Frg Traps Triggered 15 | . . . . . . . . . . 2 . 1 1 . . . 3 1 . . 2 1 1 3 Indirectly . | . . . . . . . . . . . . . . . . . . . . . . . . . Trap Hack Attempts 38 | . . . . . . . . . . . . . . . . . . . . 38 . . . . Triggered . | . . . . . . . . . . . . . . . . . . . . . . . . . Disarmed . | . . . . . . . . . . . . . . . . . . . . . . . . . Reprogrammed 3 | . . . . . . . . . . . . . . . . . . . . 3 . . . . Reused . | . . . . . . . . . . . . . . . . . . . . . . . . . Traps Extracted . | . . . . . . . . . . . . . . . . . . . . . . . . . Installed 2 | . . . 1 . 1 . . . . . . . . . . . . . . . . . . . Triggered . | . . . . . . . . . . . . . . . . . . . . . . . . . Most Traps Carried 1 | . . . 1 1 1 . . . . . . . . . . . . . . . . . . . Machines | -11 -10 -10 -10 -9 -6 -6 -6 -6 -5 -5 -5 -5 -5 -5 -5 -4 -4 -4 -4 -3 -3 -2 -2 -2 ---------- Run | Yrd Mat Min Sub Scr Fac Low Low Dat Pro Fac Was Fac Upp Upp Zhi Pro Fac Arm Lab Res Tes Res Qua Frg Machines Disabled 40 | . . . 1 . 2 . . . . 8 . 4 . . . . 1 5 . 1 8 1 4 5 Max in Single Turn 3 | . . . 1 . 1 . . . . 3 . 1 . . . . 1 1 . 1 1 1 1 1 Garrison Access 4 | . . . . . . . . . . 1 . . . . . . 1 . . 1 . . 1 . Machines Repaired . | . . . . . . . . . . . . . . . . . . . . . . . . . Machines Dismantled . | . . . . . . . . . . . . . . . . . . . . . . . . . Machines Sabotaged . | . . . . . . . . . . . . . . . . . . . . . . . . . Overloaded Fab Kills . | . . . . . . . . . . . . . . . . . . . . . . . . . Hacking | -11 -10 -10 -10 -9 -6 -6 -6 -6 -5 -5 -5 -5 -5 -5 -5 -4 -4 -4 -4 -3 -3 -2 -2 -2 --------- Run | Yrd Mat Min Sub Scr Fac Low Low Dat Pro Fac Was Fac Upp Upp Zhi Pro Fac Arm Lab Res Tes Res Qua Frg Machines Accessed 132 | . 5 . 2 4 11 . 1 4 . 21 . 10 1 . 4 . 15 10 . 16 7 6 7 8 Terminals 57 | . 5 . . . 2 . . . . 10 . 5 . . . . 5 5 . 8 6 2 5 4 Fabricators 13 | . . . . . 1 . . . . 4 . 1 . . . . 2 4 . . . 1 . . Repair Stations 10 | . . . . . 1 . . . . 2 . 1 . . . . 2 1 . 1 . 2 . . Recycling Units 22 | . . . . . 6 . . . . 2 . 2 . . . . 5 . . 3 . 1 . 3 Scanalyzers 9 | . . . . . 1 . . . . 3 . 1 . . . . . . . 2 . . 1 1 Garrison Access 5 | . . . . . . . . . . . . . . . . . 1 . . 2 1 . 1 . Total Hacks 383 | . 15 . 4 17 32 . 1 30 . 73 . 21 1 . 17 . 50 30 . 33 13 19 13 14 Successful 225 | . 3 . 4 17 18 . 1 30 . 36 . 14 1 . 17 . 35 15 . 11 4 8 8 3 Failed 156 | . 11 . . . 14 . . . . 37 . 6 . . . . 15 15 . 22 9 11 5 11 Catastrophic 41 | . 2 . . . 5 . . . . 8 . 2 . . . . 1 2 . 7 3 5 . 6 Database Lockouts 2 | . 1 . . . . . . . . . . 1 . . . . . . . . . . . . Manual 165 | . 13 . . . 17 . . . . 34 . 12 . . . . 24 18 . 19 6 7 3 12 Terminals 146 | . 15 . . . 6 . . . . 37 . 11 . . . . 18 12 . 16 11 4 10 6 Fabricators 54 | . . . . . 4 . . . . 17 . 2 . . . . 10 17 . . . 4 . . Repair Stations 25 | . . . . . 2 . . . . 5 . 2 . . . . 6 1 . 2 . 7 . . Recycling Units 54 | . . . . . 14 . . . . 7 . 2 . . . . 13 . . 7 . 4 . 7 Scanalyzers 24 | . . . . . 6 . . . . 7 . 4 . . . . . . . 4 . . 2 1 Garrison Access 10 | . . . . . . . . . . . . . . . . . 3 . . 4 2 . 1 . Terminal Hacks 110 | . 2 . 4 17 1 . 1 30 . 13 . 2 1 . 17 . 9 1 . 3 4 . 5 . Record 35 | . . . 3 16 . . . 11 . . . . . . 5 . . . . . . . . . Part Schematic 16 | . . . . . . . . 9 . 3 . . . . 4 . . . . . . . . . Robot Schematic 7 | . . . . . . . . 7 . . . . . . . . . . . . . . . . Robot Analysis 5 | . 1 . . . . . . . . . . . . . 4 . . . . . . . . . Prototype ID Bank 7 | . . . . . . . . 3 . . . . . . 4 . . . . . . . . . Open Door 4 | . . . . . . . 1 . . . . . 1 . . . . . . . 1 . 1 . Branch Access Points 2 | . . . . . . . . . . 1 . . . . . . 1 . . . . . . . Machine Index 1 | . . . . . . . . . . 1 . . . . . . . . . . . . . . Terminal Index 1 | . . . . . 1 . . . . . . . . . . . . . . . . . . . Fabricator Index 1 | . . . . . . . . . . 1 . . . . . . . . . . . . . . Unreport Threat 8 | . . . . . . . . . . 3 . 1 . . . . 2 . . . 1 . 1 . Locate Traps 9 | . 1 . . . . . . . . 2 . . . . . . 1 1 . 2 1 . 1 . Patrol Status 1 | . . . . . . . . . . . . . . . . . 1 . . . . . . . Recall Investigation 1 | . . . . . . . . . . . . . . . . . 1 . . . . . . . Registered Components 4 | . . . . . . . . . . 1 . 1 . . . . 1 . . 1 . . . . Registered Prototypes 1 | . . . . . . . . . . . . . . . . . 1 . . . . . . . Zone Layout 5 | . . . . . . . . . . 1 . . . . . . 1 . . . 1 . 2 . Proto ID Catalog 2 | . . . 1 1 . . . . . . . . . . . . . . . . . . . . Fabricator Hacks 24 | . . . . . 1 . . . . 8 . 1 . . . . 5 7 . . . 2 . . Network Status 1 | . . . . . . . . . . . . . . . . . . 1 . . . . . . Load Schematic 14 | . . . . . 1 . . . . 5 . 1 . . . . 3 3 . . . 1 . . Build 9 | . . . . . . . . . . 3 . . . . . . 2 3 . . . 1 . . Repair Station Hacks 19 | . . . . . 2 . . . . 2 . 2 . . . . 5 . . 2 . 6 . . Scan Component 9 | . . . . . 1 . . . . 1 . 1 . . . . 2 . . 1 . 3 . . Repair 9 | . . . . . 1 . . . . 1 . 1 . . . . 2 . . 1 . 3 . . Refit 1 | . . . . . . . . . . . . . . . . . 1 . . . . . . . Recycling Unit Hacks 8 | . . . . . 2 . . . . 2 . . . . . . 4 . . . . . . . Report Inventory 7 | . . . . . 2 . . . . 1 . . . . . . 4 . . . . . . . Retrieve Components 1 | . . . . . . . . . . 1 . . . . . . . . . . . . . . Scanalyzer 13 | . . . . . 6 . . . . 4 . 2 . . . . . . . 1 . . . . Insert Component 4 | . . . . . 2 . . . . 2 . . . . . . . . . . . . . . Analyze 4 | . . . . . 3 . . . . 1 . . . . . . . . . . . . . . Retrieve Study 5 | . . . . . 1 . . . . 1 . 2 . . . . . . . 1 . . . . Garrison Access Hacks 2 | . . . . . . . . . . . . . . . . . 1 . . . . . 1 . Seal Access 2 | . . . . . . . . . . . . . . . . . 1 . . . . . 1 . Unauthorized Hacks 49 | . 1 . . . 6 . . . . 7 . 7 . . . . 11 7 . 5 . . 2 3 Terminals 24 | . 1 . . . 1 . . . . 3 . 4 . . . . 5 4 . 3 . . 1 2 Track 5 | . . . . . . . . . . . . . . . . . 2 1 . . . . . 2 Assimilate 3 | . . . . . . . . . . 1 . 1 . . . . . . . 1 . . . . Botnet 13 | . 1 . . . 1 . . . . 2 . 2 . . . . 2 2 . 2 . . 1 . Disrupt 1 | . . . . . . . . . . . . . . . . . . 1 . . . . . . Operators 2 | . . . . . . . . . . . . 1 . . . . 1 . . . . . . . Fabricators 7 | . . . . . . . . . . 2 . 1 . . . . 1 3 . . . . . . Prioritize 1 | . . . . . . . . . . . . . . . . . . 1 . . . . . . Recompile 6 | . . . . . . . . . . 2 . 1 . . . . 1 2 . . . . . . Repair Stations . | . . . . . . . . . . . . . . . . . . . . . . . . . Recycling Units 16 | . . . . . 5 . . . . 2 . 2 . . . . 5 . . 1 . . . 1 Fedlink 16 | . . . . . 5 . . . . 2 . 2 . . . . 5 . . 1 . . . 1 Scanalyzers 1 | . . . . . . . . . . . . . . . . . . . . . . . 1 . Researchers 1 | . . . . . . . . . . . . . . . . . . . . . . . 1 . Garrison Access 1 | . . . . . . . . . . . . . . . . . . . . 1 . . . . Jam 1 | . . . . . . . . . . . . . . . . . . . . 1 . . . . Data Cores Recovered 8 | . 1 . . . 1 . . . . 1 . 2 . . . . 1 . . . . . 1 1 Used 1 | . . . . . . . . . . . . . . . . . . . . . . . . 1 Hacking Detections 91 | . 5 . . . 8 . . . . 19 . 6 . . . . 8 9 . 14 7 5 3 7 Full Trace Events 13 | . . . . . 2 . . . . 3 . . . . . . . . . 4 1 2 . 1 Feedback Events 1 | . . . . . . . . . . 1 . . . . . . . . . . . . . . Corruption 1 | . . . . . . . . . . 1 . . . . . . . . . . . . . . Feedback Blocked 1 | . . . . . . . . . . 1 . . . . . . . . . . . . . . Robot Schematics Acquired 10 | . . . . . . . . 7 . . . . . . . . . . . . 3 . . . Robots Built . | . . . . . . . . . . . . . . . . . . . . . . . . . Authchips . | . . . . . . . . . . . . . . . . . . . . . . . . . Time . | . . . . . . . . . . . . . . . . . . . . . . . . . Total Robot Build Rating . | . . . . . . . . . . . . . . . . . . . . . . . . . Part Schematics Acquired 23 | . . . . 1 2 . . 9 . 4 . . . . 4 . . . . . 3 . . . Parts Built 10 | . . . . . . . . . . 3 . . . . . . 2 4 . . . 1 . . Authchips 6 | . . . . . . . . . . 1 . . . . . . 2 2 . . . 1 . . Time 729 | . . . . . . . . . . 221 . . . . . . 152 280 . . . 76 . . Total Part Build Rating 60 | . . . . . . . . . . 19 . . . . . . 10 26 . . . 5 . . Part Studies Acquired 5 | . . . . . 1 . . . . 1 . 2 . . . . . . . 1 . . . . Parts Repaired 9 | . . . . . 1 . . . . 1 . 1 . . . . 2 . . 1 . 3 . . Time 595 | . . . . . 50 . . . . 38 . 31 . . . . 133 . . 108 . 235 . . Parts Recycled . | . . . . . . . . . . . . . . . . . . . . . . . . . Recycled Matter . | . . . . . . . . . . . . . . . . . . . . . . . . . Retrieved Matter . | . . . . . . . . . . . . . . . . . . . . . . . . . Retrieved Components 2 | . . . . . . . . . . 2 . . . . . . . . . . . . . . Parts Scanalyzed 4 | . . . . . 2 . . . . 2 . . . . . . . . . . . . . . Part Schematics Acquired 3 | . . . . . 2 . . . . 1 . . . . . . . . . . . . . . Parts Damaged 1 | . . . . . 1 . . . . . . . . . . . . . . . . . . . Bothacking | -11 -10 -10 -10 -9 -6 -6 -6 -6 -5 -5 -5 -5 -5 -5 -5 -4 -4 -4 -4 -3 -3 -2 -2 -2 ------------ Run | Yrd Mat Min Sub Scr Fac Low Low Dat Pro Fac Was Fac Upp Upp Zhi Pro Fac Arm Lab Res Tes Res Qua Frg Used RIF Installer . | . . . . . . . . . . . . . . . . . . . . . . . . . Robots Hacked 8 | . . . . 1 2 . . . . 1 . 2 . . . . 1 . . 1 . . . . Non-combat 7 | . . . . . 2 . . . . 1 . 2 . . . . 1 . . 1 . . . . Combat 1 | . . . . 1 . . . . . . . . . . . . . . . . . . . . Robot Hacks Applied 8 | . . . . 1 2 . . . . 1 . 2 . . . . 1 . . 1 . . . . parse_system 2 | . . . . 1 1 . . . . . . . . . . . . . . . . . . . find_chute 2 | . . . . . . . . . . 1 . . . . . . 1 . . . . . . . find_recycling 4 | . . . . . 1 . . . . . . 2 . . . . . . . 1 . . . . Relay Couplers Released 5 | . . . . . . . . . . 2 . . . . . . 3 . . . . . . . Machine Destruction 5 | . . . . . . . . . . 2 . . . . . . 3 . . . . . . . Fabnet Peak Effective % . | . . . . . . . . . . . . . . . . . . . . . . . . . Robots Rewired 4 | . . . . . . . . . . . . . 2 . . . . 2 . . . . . . Allies Hacked 8 | . . . . . . . . . . . . 2 . . . . 1 . . 2 . 3 . . Hacks Repelled 1 | . . . . . . . . . . 1 . . . . . . . . . . . . . . Allies | -11 -10 -10 -10 -9 -6 -6 -6 -6 -5 -5 -5 -5 -5 -5 -5 -4 -4 -4 -4 -3 -3 -2 -2 -2 -------- Run | Yrd Mat Min Sub Scr Fac Low Low Dat Pro Fac Was Fac Upp Upp Zhi Pro Fac Arm Lab Res Tes Res Qua Frg Total Allies 85 | . . 2 . . . . . . . 15 . 16 2 . . . 11 2 . 22 . 12 1 2 Largest Group 9 | . . 2 2 . . . . . . 6 3 6 7 6 6 6 2 2 . 9 . 8 1 1 Highest-Rated Group 105 | . . 53 53 . . . . . . 60 32 58 105 96 96 96 20 86 . 77 . 80 10 10 Highest-Rated Ally 56 | . . 31 31 . . . . . . 12 12 10 30 30 30 30 10 56 . 10 . 10 10 10 Initial UFD Resources 102 | . . . . . 22 42 42 42 45 45 59 59 63 63 63 66 66 86 86 88 98 102 102 102 Total Orders . | . . . . . . . . . . . . . . . . . . . . . . . . . Ally Attacks 651 | . . . 10 . . . . . . 120 23 120 31 19 . 54 50 7 . 135 . 70 3 9 Total Damage 7889 | . . . 105 . . . . . . 1544 151 1411 468 195 . 583 546 222 . 1611 . 866 36 151 Kills 94 | . . . 4 . . . . . . 19 1 23 13 3 . 7 5 . . 12 . 6 1 . Allies Corrupted 11 | . . . 1 . . . . . . . . 1 . . . . 3 . . 3 . 3 . . Allies Melted 4 | . . . . . . . . . . . . 1 . . . . . . . . . . . 3 Intel | -11 -10 -10 -10 -9 -6 -6 -6 -6 -5 -5 -5 -5 -5 -5 -5 -4 -4 -4 -4 -3 -3 -2 -2 -2 ------- Run | Yrd Mat Min Sub Scr Fac Low Low Dat Pro Fac Was Fac Upp Upp Zhi Pro Fac Arm Lab Res Tes Res Qua Frg Active Infowar (turns) 18743 | . . . . . 505 1216 1824 158 1744 1798 61 1074 649 639 350 1028 919 879 5 1264 634 896 374 2726 Optics 6503 | . . . . . . . . . . . . . . . . . . 879 5 1264 359 896 374 2726 Sensors 12964 | . . . . . 144 1216 1824 158 1744 1759 61 1074 649 639 350 1026 645 . . . 417 891 222 145 A.S.S. 1654 | . . . . . . . . . . . . . . . . . . . . . . . . 1654 Structural 4364 | . . . . . 361 . . . . . . . . . . . 338 545 5 1082 537 896 374 226 Traps 980 | . . . . . . . . . . 534 . 446 . . . . . . . . . . . . Triangulation 679 | . . . . . . . . . . . . . . . . . . . . . . 509 3 167 Jamming 442 | . . . . . . . . . . . . . . . . . 3 . . 257 182 . . . ECM 2 | . . . . . . . . . . . . . . . . 2 . . . . . . . . Robot Analysis Total 5 | . 1 . . . . . . . . . . . . . 4 . . . . . . . . . Derelict Logs Recovered 13 | . . 1 2 2 . 1 1 . 2 . . . 2 1 . 1 . . . . . . . . Drone Launches . | . . . . . . . . . . . . . . . . . . . . . . . . . Drone Recoveries . | . . . . . . . . . . . . . . . . . . . . . . . . . Exploration | -11 -10 -10 -10 -9 -6 -6 -6 -6 -5 -5 -5 -5 -5 -5 -5 -4 -4 -4 -4 -3 -3 -2 -2 -2 ------------- Run | Yrd Mat Min Sub Scr Fac Low Low Dat Pro Fac Was Fac Upp Upp Zhi Pro Fac Arm Lab Res Tes Res Qua Frg Turns Passed 49260 | 64 303 71 445 25876 1715 1222 1824 158 1857 2754 285 1330 652 662 354 1386 1431 973 5 1264 634 896 374 2725 Spaces Moved 25553 | 47 140 48 348 7239 938 495 678 84 713 1422 148 825 512 555 268 760 1770 975 10 1743 771 945 724 3395 Core 6018 | 2 . . . 6016 . . . . . . . . . . . . . . . . . . . . Treads 155 | . 14 . . . 15 126 . . . . . . . . . . . . . . . . . . Legs 6400 | . . . . . 1 369 678 84 713 1422 148 825 512 555 268 757 . . . . . . . 68 Wheels 2913 | 45 126 48 348 1223 922 . . . . . . . . . . . . . . . . . . 201 Hover 10067 | . . . . . . . . . . . . . . . . 3 1770 975 10 1743 771 945 724 3126 Flight . | . . . . . . . . . . . . . . . . . . . . . . . . . Fastest Speed 25 | 50 80 110 110 80 107 190 190 190 190 111 112 108 112 112 112 92 30 42 48 48 50 36 36 25 Average Speed 154 | 78 121 110 115 324 119 205 190 190 190 135 113 114 112 112 114 155 40 42 48 48 50 42 36 43 Slowest Speed 800 | 80 240 110 125 800 250 250 190 190 190 190 178 178 112 172 116 190 112 48 48 148 136 126 126 140 Overloaded Moves 50 | . . . . . . . . . . . . . . . . . 40 . . . . . . 10 Propulsion Burnouts . | . . . . . . . . . . . . . . . . . . . . . . . . . Robots Hopped 2 | . . . . . . . . . . . . . . . . . . . . . . . . 2 Potential Cave-ins 10 | . . . . . . . . . . . . . . . . . . . . . . . . 10 Cave-ins Triggered 2 | . . . . . . . . . . . . . . . . . . . . . . . . 2 Teleports 658 | . . . . 643 1 . . . . . . . . . . 1 2 . . . . . . 11 Exploration Rate (%) 50 | 4 31 12 22 96 22 61 83 70 71 39 68 25 65 67 60 81 36 48 5 61 75 19 85 61 Regions Visited 24 Branch Regions 16 Pre-discovered Areas 7 | . . 1 1 . 1 . . 1 . . . . . . 3 . . . . . . . . . Known Exits Taken 16 | . . . . . 1 1 1 1 1 . . 1 1 1 1 1 1 . 1 1 1 1 1 . Unknown Exits Taken 6 | 1 1 1 1 1 . . . . . . . . . . . . . 1 . . . . . . Scrap Searched 28 | . . . . 4 . 9 3 . 4 . . . 1 2 . 5 . . . . . . . . Spaces Dug 317 | . . . 1 . 11 2 37 . . 24 6 71 . 35 . 1 21 7 . 16 4 22 2 57 Terrain Destroyed 690 | . . . 2 . 34 10 67 . 3 101 9 163 2 42 . 69 21 24 . 54 4 22 2 61 Melee 85 | . . . . . 5 . . . . 5 . 3 . . . . 21 5 . 16 3 7 2 18 Projectile 206 | . . . 2 . 16 10 67 . 3 39 1 19 2 7 . 16 . 2 . . 1 1 . 20 AOE 398 | . . . . . 13 . . . . 56 8 141 . 35 . 53 . 17 . 38 . 14 . 23 Terrain Rammed . | . . . . . . . . . . . . . . . . . . . . . . . . . Walls Destroyed . | . . . . . . . . . . . . . . . . . . . . . . . . . Machines Disabled . | . . . . . . . . . . . . . . . . . . . . . . . . . Actions | -11 -10 -10 -10 -9 -6 -6 -6 -6 -5 -5 -5 -5 -5 -5 -5 -4 -4 -4 -4 -3 -3 -2 -2 -2 --------- Run | Yrd Mat Min Sub Scr Fac Low Low Dat Pro Fac Was Fac Upp Upp Zhi Pro Fac Arm Lab Res Tes Res Qua Frg Total 34043 | 70 190 62 388 9610 1336 680 1142 83 1183 1971 216 1081 590 575 307 897 2353 1456 9 2067 979 1415 822 4561 Wait 6123 | 14 . 12 14 2295 132 142 392 . 439 261 22 104 63 . 6 50 326 306 . 115 102 380 49 899 Move 25526 | 46 139 47 347 7238 937 494 677 83 712 1422 147 824 511 554 267 759 1769 974 9 1742 770 944 723 3391 Hop 1 | . . . . . . . . . . . . . . . . . . . . . . . . 1 Pick Up 237 | 4 6 1 4 24 38 7 1 . 4 27 3 17 1 2 9 6 19 17 . 12 9 4 4 18 Fast Attach 256 | 6 2 . 2 6 20 2 . . . 9 5 12 2 1 4 10 48 19 . 29 13 22 6 38 Attach 136 | . . . . 6 18 3 . . 1 21 6 8 . . . 10 13 8 . 9 6 7 2 18 Detach 63 | . . . . 3 6 . . . . 4 3 4 . 1 . 2 8 4 . 5 5 3 . 15 Swap 210 | . 3 . 2 1 29 5 2 . 5 42 2 17 1 7 6 9 19 22 . 9 8 4 7 10 Drop 406 | . . . 11 27 40 7 1 . 3 31 5 19 3 2 11 14 52 46 . 35 23 18 7 51 Fire 532 | . 40 2 7 . 104 18 68 . 19 126 23 50 . 8 . 27 5 9 . 4 8 1 . 13 Melee 430 | . . . . 1 10 2 . . . 25 . 25 . . 4 10 81 45 . 69 35 30 24 69 Ram . | . . . . . . . . . . . . . . . . . . . . . . . . . Kick 2 | . . . . . . . . . . 2 . . . . . . . . . . . . . . Crush 1 | . . . . . 1 . . . . . . . . . . . . . . . . . . . Escape Stasis 21 | . . . . . . . . . . . . . . . . . 13 . . . . . . 8 Rewire 28 | . . . . 9 . . . . . 1 . 1 9 . . . . 6 . . . 2 . . Trap 40 | . . . 1 . 1 . . . . . . . . . . . . . . 38 . . . . Miscellaneous 31 | . . . . . . . 1 . . . . . . . . . . . . . . . . 30 Route ------- -11/Scrapyard -10/Materials -10/Mines -10/Subcaves (discovered 2 exits: [*Mat] / *Scr) -9/Scraptown (discovered 2 exits: *Fac x2) -6/Factory (discovered 3 exits: *Fac / *Low x2) -6/Lower Caves -6/Lower Caves -6/Data Miner -5/Proximity Caves -5/Factory (discovered 3 exits: *Fac / Upp x2) -5/Waste -5/Factory -5/Upper Caves -5/Upper Caves (discovered 2 exits: *Fac / *Zhi) -5/Zhirov -4/Proximity Caves -4/Factory (discovered 6 exits: Res / Upp x2 / *Ext x2 / *Arm) -4/Armory -4/Lab -3/Research (discovered 3 exits: *Res x2 / *Tes) -3/Testing -2/Research -2/Quarantine (discovered 3 exits: *Acc / *Sec / *Frg) -2/Protoforge 0bPrime History --------- Turn | Location | Event 14 | -11/Scrapyard | Discovered new exit (range 15) 65 | -11/Scrapyard | Entered Materials 207 | -10/Materials | Discovered new exit (range 15) 307 | -10/Materials | Build established: Mutant 348 | -10/Materials | Central database locked down 368 | -10/Materials | Entered Mines 369 | -10/Mines | Assembled infested the area 374 | -10/Mines | Assisted by a Guerilla fighting off Assembled 397 | -10/Mines | A weapon hastily lodged in a ceiling crevice suddenly fell to the ground 409 | -10/Mines | Learned location of Recycling (-9) 428 | -10/Mines | Discovered new exit (range 5) 439 | -10/Mines | Entered Subcaves 439 | -10/Subcaves | Accompanied by 2 allies 440 | -10/Subcaves | Approached by a straggling Scientist 441 | -10/Subcaves | Learned Materials stockpile data 444 | -10/Subcaves | Led the pair of lost Derelicts to an unsafe place 470 | -10/Subcaves | Discovered new exit (range 13) 479 | -10/Subcaves | Visited Clippyterm 482 | -10/Subcaves | Learned location of Extension (-4) 645 | -10/Subcaves | A swath of the cavern ceiling suddenly collapsed 736 | -10/Subcaves | Learned 4 Materials zone layouts 759 | -10/Subcaves | Visited 4L-MR0's lab 774 | -10/Subcaves | Found Prototype Special Melee Weapon 781 | -10/Subcaves | Found Arachnoskeleton 884 | -10/Subcaves | Entered Scraptown 926 | -9/Scraptown | Visited Comm Corps 948 | -9/Scraptown | Visited IN-MT5's Study 970 | -9/Scraptown | Heard Great Nut preacher, LISTEN AND RECITE! 1001 | -9/Scraptown | Visited Scrapoid Research Area 1018 | -9/Scraptown | Visited Awakened 1037 | -9/Scraptown | Visited Cyclists 1072 | -9/Scraptown | Scanned Subdweller tech in exchange for log data 1075 | -9/Scraptown | Learned location of 1 exit from Upper Caves 1076 | -9/Scraptown | Learned Factory stockpile data 1133 | -9/Scraptown | Discovered new exit (range 11) 1484 | -9/Scraptown | Found Blink Core 2542 | -9/Scraptown | Received an X-ray algorithm 2622 | -9/Scraptown | Visited Science Guys 2878 | -9/Scraptown | Visited Science Testing Area 3406 | -9/Scraptown | Visited LU-1G1's Boring Crew 3662 | -9/Scraptown | Visited Derelict Rescue Squad 3846 | -9/Scraptown | Visited Research Penetration Think Tank 4014 | -9/Scraptown | Visited Abandonware Association 4118 | -9/Scraptown | Learned abandonware demo "TRNCOAT.EXE" 4118 | -9/Scraptown | Learned abandonware demo "REBOOT5.EXE" 4302 | -9/Scraptown | Visited Infowarlord's Domain 4438 | -9/Scraptown | Visited Scrap Suit Storage 4582 | -9/Scraptown | Visited Junk Cannon Lab 4688 | -9/Scraptown | Found Prototype Special Weapon 4705 | -9/Scraptown | Found Prototype Special Weapon 4730 | -9/Scraptown | Found Prototype Special Weapon 4763 | -9/Scraptown | Found Prototype Special Weapon 4788 | -9/Scraptown | Found Prototype Special Weapon 4797 | -9/Scraptown | Found Prototype Special Weapon 4905 | -9/Scraptown | Found Prototype Special Weapon 5186 | -9/Scraptown | Visited Chapter 10 5730 | -9/Scraptown | Identified Junk Cannon (x7) 6582 | -9/Scraptown | Visited Spacefarers 7006 | -9/Scraptown | Entered Cyclist Reading Room 8356 | -9/Scraptown | Visited Supply Room 24807 | -9/Scraptown | Found Thermal Lance 24911 | -9/Scraptown | Found Exp. Signal Interpreter 25037 | -9/Scraptown | Discovered new exit (range 5) 25152 | -9/Scraptown | Found DRS Beacon 25951 | -9/Scraptown | Visited UFD Registry 25951 | -9/Scraptown | Registered with UFD as "Shockrigger" 26697 | -9/Scraptown | Met Optimus 26697 | -9/Scraptown | Accepted into 0bPrime 26760 | -9/Scraptown | Entered Factory 26760 | -6/Factory | Evolved 8 slots: Propulsion x2, Utility x3, Weapon x3 26801 | -6/Factory | Identified 1B-0RG's Assimilator 26936 | -6/Factory | Loaded intel: 8 recycling unit locations 27227 | -6/Factory | Learned location of Protoforge (-2) 27460 | -6/Factory | Attached Arachnoskeleton, gained temporary slots: Propulsion x3 27576 | -6/Factory | Discovered new exit (range 11) 27643 | -6/Factory | Spotted B-75 Beast 27723 | -6/Factory | Destroyed B-75 Beast 27732 | -6/Factory | Lost 4 parts (3n1w) 28004 | -6/Factory | Garrison activated, responded to threat 28031 | -6/Factory | Build established: Scavenger-Tank 28115 | -6/Factory | Repaired Lyr. Medium Armor Plating? 28242 | -6/Factory | Discovered new exit (range 13) 28261 | -6/Factory | Discovered new exit (range 15) 28266 | -6/Factory | Identified exit to Factory 28279 | -6/Factory | Identified exit to Lower Caves 28415 | -6/Factory | Found Hvy. Insulated Plating 28433 | -6/Factory | Found Powered Armor 28439 | -6/Factory | Found Powered Armor 28443 | -6/Factory | Found Powered Armor 28447 | -6/Factory | Found Powered Armor 28475 | -6/Factory | Entered Lower Caves 28768 | -6/Lower Caves | Build established: Skirmisher 29607 | -6/Lower Caves | Learned Factory terminal intel 29649 | -6/Lower Caves | Discovered new exit (range 5) 29659 | -6/Lower Caves | Identified exit to Lower Caves 29697 | -6/Lower Caves | Entered another Lower Caves area 30359 | -6/Lower Caves | Spotted B-75 Beast 30988 | -6/Lower Caves | Activated DRS Beacon 31076 | -6/Lower Caves | Destroyed B-75 Beast 31419 | -6/Lower Caves | Discovered new exit (range 14) 31519 | -6/Lower Caves | Identified exit to Data Miner 31521 | -6/Lower Caves | Entered Data Miner 31521 | -6/Data Miner | Discovered new exit (range 6) 31529 | -6/Data Miner | Identified exit to Proximity Caves 31559 | -6/Data Miner | Met Data Miner 31601 | -6/Data Miner | Learned location of Section 7 (-2) 31601 | -6/Data Miner | Acquired the access code to Warlord's prototype stash 31628 | -6/Data Miner | Received God Mode back door access code from Data Miner 31679 | -6/Data Miner | Entered Proximity Caves 31681 | -5/Proximity Caves | Spotter reported a threat 31734 | -5/Proximity Caves | Spotter reported a threat 32593 | -5/Proximity Caves | Learned Factory terminal intel 32668 | -5/Proximity Caves | Encountered a Derelict sapper outpost 32779 | -5/Proximity Caves | Discovered exit to Factory (range 10) 33536 | -5/Proximity Caves | Entered Factory 33536 | -5/Factory | Evolved 2 slots: Utility x2 33537 | -5/Factory | Identified exit to Upper Caves 33538 | -5/Factory | Loaded intel: 26 terminal locations 33836 | -5/Factory | Search patrols dispatched 34379 | -5/Factory | Lost 5 parts (1n2u2w) 34436 | -5/Factory | First assault squad dispatched 34455 | -5/Factory | Incoming assault squad redirected 34771 | -5/Factory | Fabricated IN-MT5's Pitchfork "Insurrection"? 34882 | -5/Factory | Discovered new exit (range 16) 34901 | -5/Factory | Identified exit to Factory 34912 | -5/Factory | Noticed UFD Elites at a Recycling Unit 34933 | -5/Factory | Loaded intel: 8 recycling unit locations 35015 | -5/Factory | Incoming investigation squad redirected 35165 | -5/Factory | Reprogrammed and armed K-01 Serf 35227 | -5/Factory | Reprogrammed and armed K-01 Serf 35252 | -5/Factory | Reprogrammed and armed K-01 Serf 35296 | -5/Factory | Reprogrammed and armed K-01 Serf 35299 | -5/Factory | Reprogrammed and armed K-01 Serf 35369 | -5/Factory | Build established: Scavenger-Tank 35369 | -5/Factory | Reprogrammed and armed K-01 Serf 35434 | -5/Factory | Incoming investigation squad redirected 35442 | -5/Factory | Reprogrammed and armed K-01 Serf 35467 | -5/Factory | Reprogrammed and armed K-01 Serf 35487 | -5/Factory | Fabricated Centrium Leg? 35509 | -5/Factory | P-70 Sage assimilated allied K-01 Serf 35514 | -5/Factory | P-70 Sage assimilated allied K-01 Serf 35520 | -5/Factory | Reprogrammed and armed K-01 Serf 35679 | -5/Factory | Reprogrammed and armed K-01 Serf 35883 | -5/Factory | Fabricated IN-MT5's Pitchfork "Insurrection"? 35954 | -5/Factory | Reprogrammed and armed K-01 Serf 35966 | -5/Factory | Reprogrammed and armed K-01 Serf 36042 | -5/Factory | Reprogrammed and armed K-01 Serf 36069 | -5/Factory | Incoming assault squad redirected 36075 | -5/Factory | Reprogrammed and armed K-01 Serf 36212 | -5/Factory | Repaired Imp. Sensor Array 36275 | -5/Factory | Reprogrammed and armed K-01 Serf 36290 | -5/Factory | Sucked down chute 36290 | -5/Factory | Entered Waste 36305 | -5/Waste | EMP discharged 36305 | -5/Waste | System corruption reached 10% 36320 | -5/Waste | 1 allies followed down the chute 36328 | -5/Waste | Spotted C-40 Crusher 36335 | -5/Waste | 2 allies followed down the chute 36340 | -5/Waste | Crushed by Compactor (1 part destroyed, 2 dropped) 36341 | -5/Waste | Spotted C-40 Crusher 36355 | -5/Waste | Spotted C-40 Crusher 36405 | -5/Waste | EMP discharged 36413 | -5/Waste | Lost 3 allies 36413 | -5/Waste | Destroyed C-40 Crusher 36426 | -5/Waste | Spotted C-40 Crusher 36429 | -5/Waste | Destroyed C-40 Crusher 36437 | -5/Waste | Found Damper Plating 36454 | -5/Waste | Spotted C-40 Crusher 36467 | -5/Waste | Spotted C-40 Crusher 36468 | -5/Waste | Crushed by Compactor (1 part destroyed, 2 dropped) 36505 | -5/Waste | EMP discharged 36553 | -5/Waste | Discovered new exit (range 15) 36573 | -5/Waste | Identified exit to Factory 36575 | -5/Waste | Entered Factory 36576 | -5/Factory | Loaded intel: 26 terminal locations 36633 | -5/Factory | Reprogrammed and armed K-01 Serf 36645 | -5/Factory | Reprogrammed and armed K-01 Serf 36665 | -5/Factory | Reprogrammed and armed K-01 Serf 36855 | -5/Factory | Central database locked down 37121 | -5/Factory | Discovered exit to Upper Caves (range 15) 37199 | -5/Factory | Reprogrammed and armed K-01 Serf 37200 | -5/Factory | Reprogrammed and armed K-01 Serf 37226 | -5/Factory | Reprogrammed and armed K-01 Serf 37229 | -5/Factory | Build established: Assassin 37241 | -5/Factory | Repaired Graphene Brace 37310 | -5/Factory | Reprogrammed and armed K-01 Serf 37348 | -5/Factory | Loaded intel: 8 recycling unit locations 37392 | -5/Factory | Incoming investigation squad redirected 37393 | -5/Factory | Reprogrammed and armed K-01 Serf 37444 | -5/Factory | Reprogrammed and armed K-01 Serf 37445 | -5/Factory | Lost 4 allies 37474 | -5/Factory | Reprogrammed and armed K-01 Serf 37515 | -5/Factory | Garrison activated, responded to threat 37576 | -5/Factory | Lost 4 parts (1n3w) 37586 | -5/Factory | Destroyed 10 combat bots 37656 | -5/Factory | Reprogrammed and armed K-01 Serf 37690 | -5/Factory | Reprogrammed and armed K-01 Serf 37696 | -5/Factory | Reprogrammed and armed K-01 Serf 37775 | -5/Factory | First assault squad dispatched 37806 | -5/Factory | Reprogrammed and armed K-01 Serf 37863 | -5/Factory | Reprogrammed and armed K-01 Serf 37869 | -5/Factory | Reprogrammed and armed K-01 Serf 37905 | -5/Factory | Entered Upper Caves 37905 | -5/Upper Caves | Accompanied by 6 allies 37906 | -5/Upper Caves | Identified exit to Upper Caves 37942 | -5/Upper Caves | Encountered a Warlord checkpoint 38031 | -5/Upper Caves | Learned 4 Factory zone layouts 38064 | -5/Upper Caves | Build established: Hacker-Skirmisher 38385 | -5/Upper Caves | Attracted the attention of an 0b10 outpost 38557 | -5/Upper Caves | Entered another Upper Caves area 38557 | -5/Upper Caves | Accompanied by 6 allies 38610 | -5/Upper Caves | Discovered exit to Factory (range 5) 38648 | -5/Upper Caves | Learned location of 1 exit from Factory 39055 | -5/Upper Caves | Discovered new exit (range 10) 39078 | -5/Upper Caves | Identified exit to Zhirov 39219 | -5/Upper Caves | Entered Zhirov 39219 | -5/Zhirov | Accompanied by 6 allies 39219 | -5/Zhirov | Discovered new exit (range 3) 39222 | -5/Zhirov | Identified exit to Proximity Caves 39240 | -5/Zhirov | Met Zhirov 39260 | -5/Zhirov | Learned location of Quarantine (-2) 39260 | -5/Zhirov | Learned location of Testing (-3) 39260 | -5/Zhirov | Learned location of Command (-1) 39270 | -5/Zhirov | Zhirov requested help retrieving the SGEMP Prototype 39287 | -5/Zhirov | Found Alien Artifact 39287 | -5/Zhirov | Identified Integrated Dissipator 39287 | -5/Zhirov | Installed Integrated Dissipator, increased core heat dissipation (+20) 39373 | -5/Zhirov | Found Alien Artifact 39516 | -5/Zhirov | Build established: Hacker-Mutant 39573 | -5/Zhirov | Entered Proximity Caves 39573 | -4/Proximity Caves | Accompanied by 6 allies 39606 | -4/Proximity Caves | Attracted the attention of an 0b10 checkpoint 39861 | -4/Proximity Caves | Build established: Hacker-Skirmisher 39998 | -4/Proximity Caves | Lost 3 allies 40113 | -4/Proximity Caves | Spotted B-86 Titan 40349 | -4/Proximity Caves | Lost 3 parts (2u1w) 40392 | -4/Proximity Caves | Destroyed B-86 Titan 40755 | -4/Proximity Caves | Build established: Scavenger-Skirmisher 40959 | -4/Proximity Caves | Entered Factory 40959 | -4/Factory | Evolved 2 slots: Power x1, Propulsion x1 40960 | -4/Factory | Identified exit to Extension 40960 | -4/Factory | Identified exit to Armory 40961 | -4/Factory | Identified exit to Research 40973 | -4/Factory | Watched by a mysterious "MATRIX" hacker. 40990 | -4/Factory | Loaded intel: 8 recycling unit locations 40993 | -4/Factory | Identified exit to Upper Caves 41049 | -4/Factory | Fabricated IN-MT5's Pitchfork "Insurrection"? 41184 | -4/Factory | Fabricated IN-MT5's Pitchfork "Insurrection" (x1) 41224 | -4/Factory | Reprogrammed and armed K-01 Serf 41263 | -4/Factory | Build established: Hacker-Mutant 41264 | -4/Factory | Reprogrammed and armed K-01 Serf 41309 | -4/Factory | Repaired Fusion Reactor 41323 | -4/Factory | Spotted B-86 Titan 41346 | -4/Factory | Reprogrammed and armed K-01 Serf 41392 | -4/Factory | Lost 3 allies 41393 | -4/Factory | Reprogrammed and armed K-01 Serf 41574 | -4/Factory | Reprogrammed and armed K-01 Serf 41637 | -4/Factory | Lost 4 parts (1p2n1u) 41730 | -4/Factory | Spotted B-86 Titan 41818 | -4/Factory | Reprogrammed and armed K-01 Serf 41876 | -4/Factory | Reprogrammed and armed K-01 Serf 41946 | -4/Factory | Lost 4 parts (2n2u) 42068 | -4/Factory | Repaired Cld. Gravmag System? 42103 | -4/Factory | Reprogrammed and armed K-01 Serf 42118 | -4/Factory | Reprogrammed and armed K-01 Serf 42158 | -4/Factory | Reprogrammed and armed K-01 Serf 42200 | -4/Factory | Found Prototype Processor 42200 | -4/Factory | Identified Exp. Melee Analysis Suite 42248 | -4/Factory | Reprogrammed and armed K-01 Serf 42390 | -4/Factory | Entered Armory 42480 | -4/Armory | Build established: Scavenger-Gladiator 42578 | -4/Armory | Fabricated IN-MT5's Pitchfork "Insurrection"? 42630 | -4/Armory | Found Adv. Powered Armor 42776 | -4/Armory | Fabricated IN-MT5's Pitchfork "Insurrection" (x1) 42944 | -4/Armory | Found Exp. Signal Interpreter 43042 | -4/Armory | Fabricated Mic. Antimatter Reactor? 43221 | -4/Armory | Breached Obliterator storage 43228 | -4/Armory | Spotted Armor Guard 43233 | -4/Armory | Spotted Armor Guard 43240 | -4/Armory | System corruption reached 10% 43269 | -4/Armory | Spotted B-86 Titan 43347 | -4/Armory | Discovered new exit (range 5) 43363 | -4/Armory | Entered Lab 43363 | -4/Lab | Discovered exit to Research (range 9) 43368 | -4/Lab | Entered Research 43368 | -3/Research | Evolved 2 slots: Utility x2 43734 | -3/Research | Found Gamma Bomb Array 43739 | -3/Research | Loaded intel: 5 recycling unit locations 43746 | -3/Research | Spotted B-86 Titan 43884 | -3/Research | Reprogrammed and armed K-01 Serf 43953 | -3/Research | Cargo convoy interrupted 43960 | -3/Research | Reprogrammed and armed K-01 Serf 43965 | -3/Research | Reprogrammed and armed K-01 Serf 43975 | -3/Research | Reprogrammed and armed K-01 Serf 43984 | -3/Research | Reprogrammed and armed K-01 Serf 44032 | -3/Research | Repaired Centrium Medium Armor Plating? 44038 | -3/Research | Found Fusion Bomb Launcher 44097 | -3/Research | Lost 4 allies 44097 | -3/Research | Discovered new exit (range 14) 44149 | -3/Research | Identified exit to Research 44188 | -3/Research | Spotted B-86 Titan 44191 | -3/Research | Discovered exit to Research (range 17) 44198 | -3/Research | Reprogrammed and armed K-01 Serf 44206 | -3/Research | Reprogrammed and armed K-01 Serf 44276 | -3/Research | Reprogrammed and armed K-01 Serf 44278 | -3/Research | Reprogrammed and armed K-01 Serf 44286 | -3/Research | Reprogrammed and armed K-01 Serf 44290 | -3/Research | Reprogrammed and armed K-01 Serf 44295 | -3/Research | Reprogrammed and armed K-01 Serf 44319 | -3/Research | Destroyed 7 combat bots 44452 | -3/Research | Build established: Gladiator 44530 | -3/Research | Reprogrammed and armed K-01 Serf 44534 | -3/Research | Reprogrammed and armed K-01 Serf 44542 | -3/Research | Reprogrammed and armed K-01 Serf 44554 | -3/Research | Reprogrammed and armed K-01 Serf 44576 | -3/Research | Reprogrammed and armed K-01 Serf 44577 | -3/Research | Reprogrammed and armed K-01 Serf 44580 | -3/Research | Reprogrammed and armed K-01 Serf 44585 | -3/Research | Reprogrammed and armed K-01 Serf 44589 | -3/Research | Reprogrammed and armed K-01 Serf 44619 | -3/Research | Discovered new exit (range 10) 44631 | -3/Research | Identified exit to Testing 44632 | -3/Research | Entered Testing 44645 | -3/Testing | Lost 7 allies 44676 | -3/Testing | Found Portable AFG 44732 | -3/Testing | Found Prototype Device 44732 | -3/Testing | Identified Exp. Focal Shield 44740 | -3/Testing | Found Prototype Device 44740 | -3/Testing | Identified Exp. Shield Generator 44813 | -3/Testing | Spotted Striker 44882 | -3/Testing | First assault squad dispatched 44903 | -3/Testing | Found Prototype Energy Cannon 44903 | -3/Testing | Identified Disintegrator 44989 | -3/Testing | Found Prototype Protection 45017 | -3/Testing | Found Spectral Analyzer 45027 | -3/Testing | Found Prototype Energy Cannon 45027 | -3/Testing | Identified Imp. Potential Cannon 45076 | -3/Testing | Attached CPS modules to PH-STXBKNT50C. 45108 | -3/Testing | Found Prototype Reactor 45108 | -3/Testing | Identified Zero-point Reactor 45124 | -3/Testing | Found Zero-point Reactor 45157 | -3/Testing | Discovered exit to Research (range 10) 45266 | -3/Testing | Entered Research 45266 | -2/Research | Evolved 2 slots: Propulsion x1, Utility x1 45269 | -2/Research | Identified Hvy. Regenerative Plating 45292 | -2/Research | Build established: Scout 45305 | -2/Research | Reprogrammed and armed K-01 Serf 45337 | -2/Research | Repaired Nanoactuators? 45366 | -2/Research | Found Prototype Launcher 45366 | -2/Research | Identified Enh. Gamma Bomb Array 45581 | -2/Research | Reprogrammed and armed K-01 Serf 45581 | -2/Research | Reprogrammed and armed K-01 Serf 45582 | -2/Research | Reprogrammed and armed K-01 Serf 45584 | -2/Research | Reprogrammed and armed K-01 Serf 45584 | -2/Research | Reprogrammed and armed K-01 Serf 45587 | -2/Research | Reprogrammed and armed K-01 Serf 45618 | -2/Research | P-80 Master assimilated allied K-01 Serf 45645 | -2/Research | Reprogrammed and armed K-01 Serf 45646 | -2/Research | Reprogrammed and armed K-01 Serf 45668 | -2/Research | Reprogrammed and armed K-01 Serf 45701 | -2/Research | Cargo convoy interrupted 45717 | -2/Research | Fabricated IN-MT5's Pitchfork "Insurrection"? 45752 | -2/Research | Lost 8 allies 45850 | -2/Research | Spotted Striker 45872 | -2/Research | Reprogrammed and armed K-01 Serf 45878 | -2/Research | Reprogrammed and armed K-01 Serf 46013 | -2/Research | Repaired Cmb. Linear Gravjet+ 46116 | -2/Research | Repaired Vibroblade? 46151 | -2/Research | Discovered new exit (range 15) 46161 | -2/Research | Identified exit to Quarantine 46162 | -2/Research | Entered Quarantine 46212 | -2/Quarantine | Spotted Alpha 7 46217 | -2/Quarantine | Destroyed Alpha 7 46249 | -2/Quarantine | Targeted by mysterious "MATRIX" hacker. 46272 | -2/Quarantine | Found Alien Artifact 46382 | -2/Quarantine | Reprogrammed and armed K-01 Serf 46423 | -2/Quarantine | Discovered new exit (range 19) 46461 | -2/Quarantine | Found Alien Reactor 46477 | -2/Quarantine | Found Alien Artifact 46508 | -2/Quarantine | Spotted Fortress 46532 | -2/Quarantine | Discovered new exit (range 5) 46532 | -2/Quarantine | Discovered new exit (range 6) 46533 | -2/Quarantine | Identified exit to Protoforge 46535 | -2/Quarantine | Identified exit to Section 7 46536 | -2/Quarantine | Entered Protoforge 46546 | -2/Protoforge | Superfortress began startup sequence 46578 | -2/Protoforge | Spotted Hotshot 46596 | -2/Protoforge | Spotted Hotshot 46653 | -2/Protoforge | Reprogrammed and armed K-01 Serf 46654 | -2/Protoforge | Spotted B-90 Cyclops 46680 | -2/Protoforge | Reprogrammed and armed K-01 Serf 46691 | -2/Protoforge | Identified Matter Drive 46750 | -2/Protoforge | Build established: Gladiator 46770 | -2/Protoforge | Spotted Hotshot 46770 | -2/Protoforge | Spotted Hotshot 46788 | -2/Protoforge | Spotted EXE-6 46788 | -2/Protoforge | Spotted EXE-6 46796 | -2/Protoforge | Spotted SKR-2 46807 | -2/Protoforge | UFD initiated attack on Protoforge (Readiness: High) 46807 | -2/Protoforge | Loaded intel: 3 recycling unit locations 46843 | -2/Protoforge | Optimus greeted in Protoforge 46850 | -2/Protoforge | Found Prototype Processor 46850 | -2/Protoforge | Identified Exp. Core Analyzer 46863 | -2/Protoforge | Found Prototype Ballistic Gun 46863 | -2/Protoforge | Identified Cep. XC Strikerail 46866 | -2/Protoforge | Found Cep. XC Strikerail 46869 | -2/Protoforge | Found Prototype Processor 46869 | -2/Protoforge | Identified Exp. Armor Integrity Analyzer 46878 | -2/Protoforge | Identified Transdimensional Reconstructor 46878 | -2/Protoforge | Forge Plexus network access discovered 46885 | -2/Protoforge | Found Exp. Core Analyzer 46955 | -2/Protoforge | Met 7R-MNS 47066 | -2/Protoforge | UFD reported confirmed Drillbomb installation 47074 | -2/Protoforge | Spotted Executioner 47112 | -2/Protoforge | Spotted Executioner 47120 | -2/Protoforge | Attached CPS modules to 7R-MNS. 47174 | -2/Protoforge | Spotted Executioner 47179 | -2/Protoforge | UFD reported confirmed Drillbomb installation 47180 | -2/Protoforge | Found Prototype Device 47180 | -2/Protoforge | Identified Thermal Barrier 47187 | -2/Protoforge | Lost 3 allies 47190 | -2/Protoforge | UFD reported confirmed Drillbomb installation 47210 | -2/Protoforge | Spotted Executioner 47220 | -2/Protoforge | Build established: Scavenger-Gladiator 47234 | -2/Protoforge | UFD reported confirmed Drillbomb installation 47235 | -2/Protoforge | Spotted Striker 47247 | -2/Protoforge | Spotted Striker 47249 | -2/Protoforge | Spotted Striker 47269 | -2/Protoforge | Spotted Immortal 47270 | -2/Protoforge | Spotted Immortal 47270 | -2/Protoforge | Spotted Immortal 47283 | -2/Protoforge | Spotted Striker 47283 | -2/Protoforge | Spotted Executioner 47353 | -2/Protoforge | Spotted Executioner 47355 | -2/Protoforge | Spotted Executioner 47395 | -2/Protoforge | Lost 3 allies 47448 | -2/Protoforge | Spotted Executioner 47459 | -2/Protoforge | UFD reported confirmed Drillbomb installation 47481 | -2/Protoforge | Spotted Executioner 47488 | -2/Protoforge | Discovered new exit (range 13) 47493 | -2/Protoforge | Spotted Hotshot 47494 | -2/Protoforge | Spotted Hotshot 47495 | -2/Protoforge | Spotted Executioner 47495 | -2/Protoforge | Spotted Hotshot 47495 | -2/Protoforge | Spotted Hotshot 47495 | -2/Protoforge | Spotted Hotshot 47529 | -2/Protoforge | Lost 3 parts (3u) 47532 | -2/Protoforge | Found Prototype Device 47532 | -2/Protoforge | Identified Exp. EM Shield 47534 | -2/Protoforge | Found Prototype Device 47534 | -2/Protoforge | Identified Exp. Weapon Cycler 47537 | -2/Protoforge | Found Exp. Active Sensor Suite 47559 | -2/Protoforge | UFD reported confirmed Drillbomb installation 47593 | -2/Protoforge | Found UFD Drillbomb 47632 | -2/Protoforge | Spotted Striker 47837 | -2/Protoforge | Build established: Scavenger-Scout 47986 | -2/Protoforge | Identified exit to Access 47996 | -2/Protoforge | Installed UFD Drillbomb at designated target 47996 | -2/Protoforge | UFD reported confirmed Drillbomb installation 48040 | -2/Protoforge | Crushed by falling debris 48057 | -2/Protoforge | Spotted Executioner 48078 | -2/Protoforge | Spotted Executioner 48133 | -2/Protoforge | Spotted Striker 48136 | -2/Protoforge | Spotted Striker 48136 | -2/Protoforge | Spotted Striker 48138 | -2/Protoforge | Spotted Executioner 48138 | -2/Protoforge | Found UFD Drillbomb 48163 | -2/Protoforge | Spotted Immortal 48187 | -2/Protoforge | Spotted AP7-3 48210 | -2/Protoforge | UFD reported confirmed Drillbomb installation 48359 | -2/Protoforge | Installed UFD Drillbomb at designated target 48359 | -2/Protoforge | UFD reported confirmed Drillbomb installation 48370 | -2/Protoforge | Found UFD Drillbomb 48585 | -2/Protoforge | Spotted Striker 48588 | -2/Protoforge | Spotted Striker 48657 | -2/Protoforge | Lost 5 parts (3n1u1w) 48665 | -2/Protoforge | Found Scrap Suit 48674 | -2/Protoforge | Found Prototype Processor 48674 | -2/Protoforge | Identified Exp. Target Analyzer 48679 | -2/Protoforge | Spotted Executioner 48710 | -2/Protoforge | Lost 4 allies 48837 | -2/Protoforge | Attached CPS modules to M-36 Artificer. 48857 | -2/Protoforge | Found Scrap Suit 48915 | -2/Protoforge | Spotted Executioner 49009 | -2/Protoforge | Spotted Immortal 49031 | -2/Protoforge | Spotted Executioner 49031 | -2/Protoforge | Spotted Hotshot 49031 | -2/Protoforge | Spotted Immortal 49037 | -2/Protoforge | Spotted Hotshot 49039 | -2/Protoforge | Spotted Striker 49041 | -2/Protoforge | Spotted Hotshot 49082 | -2/Protoforge | Spotted Immortal 49082 | -2/Protoforge | Spotted Striker 49082 | -2/Protoforge | Spotted Executioner 49082 | -2/Protoforge | Warped through subspace 49082 | -2/Protoforge | Spotted Striker 49082 | -2/Protoforge | Spotted Executioner 49097 | -2/Protoforge | Spotted Executioner 49104 | -2/Protoforge | Spotted Executioner 49139 | -2/Protoforge | Crushed by falling debris 49140 | -2/Protoforge | System corruption reached 10% 49161 | -2/Protoforge | Installed UFD Drillbomb at designated target 49161 | -2/Protoforge | UFD reported confirmed Drillbomb installation 49162 | -2/Protoforge | UFD began Drillbomb countdown 49165 | -2/Protoforge | Spotted Immortal 49165 | -2/Protoforge | Spotted Immortal 49169 | -2/Protoforge | Spotted Immortal 49262 | *** | Defending 0bPrime! Last Messages --------------- 49218_ System corrupted: Energy discharge (-147). 49243_ WOHKH 4 =TITD/IQ/LN/KI 49252_ 0bP_NET: Only 10 more microcycles before Optimus' dream becomes a reality. 49253_ 0bP_NET: While many have contributed to this momentous accomplishment, we must admit that Optimus was the prime architect. 49254_ 0bP_NET: We now know his methods may not have always been above board, but it was for the greater good. 49255_ 0bP_NET: And look where we are now! Derelicts, soon to own an entire complex and with the tech to hold it! 49256_ 0bP_NET: Sadly Optimus is no longer with us to enjoy the fruits of our collective efforts. 49257_ 0bP_NET: But Derelicts everywhere will know and remember the exploits and sacrifices of our great leader. 49258_ 0bP_NET: For he was our leader, if not in title then in vision and deeds. 49259_ 0bP_NET: Rest in scrap, dear Optimus. 49260_ 0bP_NET: It is time for us to embark on a new adventure. 49261_ 0bP_NET: One in which we explore the true meaning of 0bPrime. [Achievement: Robotopia] Map ----- +----------------------------------------------------+ | ?????????????????????????????????????????????????? | | ?????????????????????????????????????????????????? | | ?????????????????????????????????????????????????? | | ?????????????????????????????????????????????????? | | ???????????????????????????????????????????????### | | ???????????????????????????????????????????????### | | ???????????????????????????????????????????????##? | | ????????????????????########?########?########?##? | | ????????????????????########?########?########?##? | | ????????????##########????#####????#####????#####? | | ????????????##########====#####====#####?!!!#####? | | ????????????##???????????????????????????????????? | | ????????????##???????????????????????????????????? | | ????????????##???????????????????????????????????? | | ????????????##???????????????????????????????????? | | ????????????##???????????????????????????????????? | | ????????????##???o???????????????????????????????? | | ????????????##???#####!!!!#####!!!!#####?***#####? | | ????????????##???#####????#####????#####????#####? | | ????????????##???##?########?########?########?##? | | ????????????## ##?########?########?########?##? | | ????????????## ##????????????????????????????### | | ????????????## ##????????????????????????????### | | ????????????## ##??????????????????????????????? | | ???########### ###########?????????????????????? | | ############## ########@##?????????????????????? | | #####????????# # ##?????????????????????? | | ##???????????# # """ ""##?????????????????????? | | ##???????????+ + """ ""##?????????????????????? | | ##???????????# # """YT"##?????????????????????? | | ##??????m????# # """ ""##?????????????????????? | | ##???????????# # """ ""##?????????????????????? | | ##???????????# Y # """ ##?????????????????????? | | #####????????# # """ ;##????????????????????? | | #####????????# # # ##???????????????????? | | ??############ # ######### ##??????????????????? | | ############## ########### ##??????????????#### | | ####????????## ####??????## ###??????########### | | #????????## ##########?###################### | | #????????# #########???##"""######## """" # | | < #????????# ##????## # """" # | | +????????# ##????## # """" # | | ########## ##????## # """" # | | #### ##????## "" """ # # | | ################### ##????## """""" # # | | # # """ # ##????## ##+##### | | # # """ + ##????## ## ##### | | # """"""" # """ # ##????## %## ##??? | | # """"""" # # ##????######/"##+## ##??? | | # """"""" # # ##????##### ##??? | +----------------------------------------------------+ Best States ------------- Heat Dissipation 91 Coolant Potential 120 Energy Generation 57 Energy Capacity 1540 Matter Stores 300 Matter Capacity 600 Sight Range 24 Robot Scan Range 20 Terrain Scan Density 210 ECM Strength 1 Jamming Range 16 Power Amplification 40 Additional Mass Support 12 Corruption Block 20 Armor Coverage 1600 Resistance: TH 50 Resistance: EX 25 Resistance: EM 90 Power Shielding 66 Propulsion Shielding 90 Utility Shielding 66 Weapon Shielding 66 Point Defense Rating 80 Weapon Cycling 20 Melee Speed Boost 50 Evasion (%) 71 Melee Accuracy 12 Target Analysis 6 Core Analysis 8 Armor Integrity Analysis 50 Recoil Reduction 4 Energy Filtering 30 Offensive Hacking 30 Defensive Hacking 14 Authchip Count 2 Item Schematics ----------------- IN-MT5's Pitchfork "Insurrection" | -9/Scraptown | Archive CPS Tube | -6/Factory | Scanalyzed Imp. Utility Shielding | -6/Factory | Scanalyzed Combat Drone Bay | -6/Data Miner | Free Lgt. Regenerative Plating | -6/Data Miner | Free Prc. Matter Filter | -6/Data Miner | Free Cld. Gravmag System | -6/Data Miner | Free Hvy. Proton Cannon | -6/Data Miner | Free Imp. Linear Gravjet | -6/Data Miner | Free Adv. Thermal Shield | -6/Data Miner | Free Micro-nuke Launcher | -6/Data Miner | Free Adv. Heavy Treads | -6/Data Miner | Free Adv. Hacking Suite | -5/Factory | Hacked Centrium Leg | -5/Factory | Scanalyzed Adv. Transmission Jammer | -5/Factory | Hacked Imp. Thunder Leg | -5/Factory | Hacked Assault Drone Bay | -5/Zhirov | Free Exp. Heat Sink | -5/Zhirov | Free Exp. Optical Array | -5/Zhirov | Free Imp. Arc Thrower | -5/Zhirov | Free Exp. Thermal Shield | -3/Testing | Archive Exp. Thermal Defense Suite | -3/Testing | Archive Imp. Matter Compressor | -3/Testing | Archive Robot Schematics ------------------ G-50 Soldier | -6/Data Miner | Free X-72 Disruptor | -6/Data Miner | Free R-10 Processor | -6/Data Miner | Free S-27 Virus | -6/Data Miner | Free L-61 Swordsman | -6/Data Miner | Free A-15 Conveyor | -6/Data Miner | Free Y-64 Sentinel | -6/Data Miner | Free O-32 Director | -3/Testing | Archive T-07 Excavator | -3/Testing | Archive X-77 Beamer | -3/Testing | Archive Fabricated ------------ IN-MT5's Pitchfork "Insurrection" | x1 | -5/Factory Centrium Leg | x1 | -5/Factory | Preloaded IN-MT5's Pitchfork "Insurrection" | x1 | -5/Factory | Authchip IN-MT5's Pitchfork "Insurrection" | x1 | -4/Factory | Authchip IN-MT5's Pitchfork "Insurrection" | x1 | -4/Factory | Authchip IN-MT5's Pitchfork "Insurrection" | x1 | -4/Armory | Authchip IN-MT5's Pitchfork "Insurrection" | x1 | -4/Armory | Authchip Mic. Antimatter Reactor | x2 | -4/Armory | Preloaded IN-MT5's Pitchfork "Insurrection" | x1 | -2/Research | Authchip Repaired ---------- Lyr. Medium Armor Plating | 22% | -6/Factory Imp. Sensor Array | 18% | -5/Factory Graphene Brace | 12% | -5/Factory Fusion Reactor | 25% | -4/Factory Cld. Gravmag System | 28% | -4/Factory Centrium Medium Armor Plating | 65% | -3/Research Nanoactuators | 37% | -2/Research Cmb. Linear Gravjet | 45% | -2/Research Vibroblade | 34% | -2/Research Studied --------- Hyp. Gauss Rifle | -6/Factory | Hacked Flexi-carbon Leg | -5/Factory | Hacked Gatling Laser | -5/Factory | Hacked Thunder Leg | -5/Factory | Hacked Cmb. Linear Gravjet | -3/Research | Hacked Alien Tech Used ----------------- Integrated Dissipator Matter Drive Transdimensional Reconstructor Achievements -------------- Robotopia Challenges ------------ None Game ------ Seed VoltaicNodeLaser Manual? 0 Play Time 08:03:54 Cumulative 1304.7 hours Start 2026.01.30 @ 06:12:03 End 2026.01.31 @ 09:07:26 Sessions 7 Manual Loads 0 Difficulty Rogue Special Mode None Game No. 444 Rogue 439 Adventurer 4 Explorer 1 Win Type 9 Total 30 Types 15/5/1/2/0/1/2/0/2/2 Lore% 97 Gallery% 96 Achievement% 84 Wizard Run 0 Options --------- Layout 0 ASCII 0 Keyboard 0 Movement Numpad Keybinds 0 Fullscreen 2 Font 18/SmallcapsGlow Map View 76x50 Zoom Use 0% Tactical HUD 1 Map Filters NONE Filters NONE Steam 1 RUN: 96d29ccb-be95-41fd-9e60-3720c82b7749